{"text_format":"1","workbook":"xlsx","n_sheets":4,"sheets":["Prompt","Cedula9B","Enviar","Carreras"],"not_rendered":{"charts":0,"images":4,"macros":1,"external_links":0,"defined_names":5,"comments":1,"pivot_tables":0},"unopened":[],"bounds":{"document_bytes":16777216,"sheet_cells":100000,"rows_first":2000,"rows_last":500,"rows_between":2000,"halvings":0,"cell_chars":16384,"cell_head_chars":4096},"cells_cut":0,"cells_raw":0,"read":"whole","date_system":"1900"}

{"sheet":"Prompt","index":0,"n_rows":38,"n_cols":4,"rows_kept":38,"cut":false,"hidden":false,"merged":[[0,3,1,5],[3,1,5,8],[8,1,9,8],[37,1,38,8]]}
[null,null,null,"¡ATENCIÓN!"]
[]
[]
[null,"Para hacer uso de las funcionalidades de esta Cédula Electrónica debe habilitar macros"]
[]
[]
[]
[]
[null,"Si utiliza Excel 2000, 2002, 2003 siga el siguiente procedimiento:"]
[]
[]
[]
[]
[]
[]
[]
[]
[]
[]
[]
[]
[]
[]
[]
[]
[]
[]
[]
[]
[]
[]
[]
[]
[]
[]
[]
[]
[null,"Si utiliza Excel 2007 siga el siguiente procedimiento:"]

{"sheet":"Cedula9B","index":1,"n_rows":215,"n_cols":49,"rows_kept":215,"cut":false,"hidden":true,"merged":[[157,4,157,9],[148,4,148,9],[149,4,149,9],[150,4,150,9],[151,4,151,9],[152,4,152,9],[153,4,153,9],[154,4,154,9],[155,4,155,9],[156,4,156,9],[131,4,131,9],[122,4,122,9],[123,4,123,9],[124,4,124,9],[125,4,125,9],[126,4,126,9],[127,4,127,9],[128,4,128,9],[129,4,129,9],[130,4,130,9],[81,26,81,27],[79,28,79,35],[79,36,79,43],[80,28,80,31],[80,32,80,35],[80,36,80,39],[80,40,80,43],[81,38,81,39],[81,40,81,41],[81,42,81,43],[81,30,81,31],[81,32,81,33],[81,34,81,35],[81,36,81,37],[81,28,81,29],[80,24,80,27],[165,7,165,8],[165,9,165,10],[165,11,165,12],[165,13,165,14],[164,7,164,8],[164,9,164,10],[164,11,164,12],[164,13,164,14],[103,4,103,9],[146,4,146,9],[144,4,144,9],[145,4,145,9],[143,4,143,9],[114,4,114,9],[115,4,115,9],[116,4,116,9],[117,4,117,9],[139,4,139,9],[110,5,110,8],[112,4,112,9],[113,4,113,9],[119,4,119,9],[120,4,120,9],[121,4,121,9],[66,17,66,23],[64,10,64,16],[64,17,64,23],[163,7,163,8],[163,9,163,10],[163,11,163,12],[163,13,163,14],[160,7,160,14],[81,12,81,13],[81,14,81,15],[84,10,84,11],[85,10,85,11],[95,10,95,11],[96,10,96,11],[102,4,102,9],[99,4,99,9],[81,16,81,17],[81,18,81,19],[80,16,80,19],[79,12,79,19],[80,12,80,15],[79,10,81,11],[79,20,79,27],[80,20,80,23],[60,17,60,23],[61,4,61,9],[61,10,61,16],[61,17,61,23],[60,4,60,9],[60,10,60,16],[65,17,65,23],[62,10,62,16],[62,17,62,23],[63,4,63,9],[63,10,63,16],[63,17,63,23],[62,4,62,9],[56,17,56,22],[57,4,57,9],[57,10,57,16],[57,17,57,23],[56,4,56,8],[56,10,56,15],[58,17,58,23],[59,4,59,9],[59,10,59,16],[59,17,59,23],[58,4,58,9],[58,10,58,16],[169,17,169,19],[170,17,170,19],[171,17,171,19],[172,17,172,19],[170,8,170,11],[170,12,170,16],[169,4,169,7],[169,8,169,11],[171,12,171,16],[172,3,172,7],[172,8,172,11],[172,12,172,16],[171,3,171,7],[171,8,171,11],[169,12,169,16],[170,3,170,7],[100,4,100,9],[101,4,101,9],[89,4,89,9],[87,4,87,9],[88,4,88,9],[93,4,93,9],[82,5,82,8],[84,4,84,9],[97,10,97,11],[92,10,92,11],[93,10,93,11],[94,10,94,11],[96,4,96,9],[97,4,97,9],[98,4,98,9],[90,4,90,9],[86,4,86,9],[92,4,92,9],[95,4,95,9],[94,4,94,9],[85,4,85,9],[81,20,81,21],[81,22,81,23],[81,24,81,25],[71,11,71,12],[65,4,65,9],[65,10,65,16],[66,10,66,16],[91,4,91,9],[22,3,24,6],[36,11,36,12],[35,13,35,16],[36,15,36,16],[23,11,23,12],[23,15,23,16],[70,7,71,8],[70,9,70,12],[35,9,35,12],[86,10,86,11],[87,10,87,11],[88,10,88,11],[89,10,89,11],[90,10,90,11],[91,10,91,11],[79,3,81,9],[1,17,3,18],[3,7,3,14],[14,6,14,14],[36,9,36,10],[35,7,36,8],[22,7,23,8],[35,3,37,6],[1,7,1,14],[12,17,12,18],[22,13,22,16],[2,7,2,14],[23,9,23,10],[70,3,72,6],[23,13,23,14],[36,13,36,14],[71,9,71,10],[64,4,64,9],[66,4,66,9],[16,6,16,14],[22,9,22,12],[70,13,70,16],[71,13,71,14],[71,15,71,16],[108,26,109,27],[108,28,109,29],[109,22,109,23],[161,11,161,14],[162,7,162,8],[162,9,162,10],[162,11,162,12],[162,13,162,14],[138,4,138,9],[136,5,136,8],[118,4,118,9],[140,4,140,9],[141,4,141,9],[142,4,142,9],[160,3,162,5],[161,7,161,10],[147,4,147,9],[134,26,135,27],[134,12,134,17],[134,18,134,21],[109,12,109,13],[109,14,109,15],[109,16,109,17],[109,24,109,25],[102,10,102,11],[98,10,98,11],[99,10,99,11],[100,10,100,11],[101,10,101,11],[108,12,108,17],[103,10,103,11],[108,18,108,21],[108,22,108,25],[134,3,135,9],[134,10,135,11],[108,3,109,9],[108,10,109,11],[159,4,159,14],[134,36,135,37],[135,12,135,13],[135,14,135,15],[135,16,135,17],[135,18,135,19],[135,20,135,21],[135,22,135,23],[135,24,135,25],[134,22,134,25],[134,28,135,29],[134,30,135,31],[134,32,135,33],[134,34,135,35],[108,30,109,31],[108,32,109,33],[108,34,109,35],[108,36,109,37],[109,18,109,19],[109,20,109,21]]}
[]
[null,null,null,null,null,null,null,"CENSO EDUCATIVO 2022",null,null,null,null,null,null,null,null,null,"9B"]
[null,null,null,null,null,null,null,"EDUCACIÓN"]
[null,null,null,null,null,null,null,"TÉCNICO PRODUCTIVA"]
[null,null,null,"Version :",3]
[null,null,null,"INSTRUCCIONES DEL FORMATO ELECTRÓNICO "]
[]
[]
[]
[null,null,null,"IDENTIFICACIÓN DEL SERVICIO EDUCATIVO"]
[]
[]
[null,null,null,"1. CÓDIGO MODULAR :",null,null,null,null,null,null,null,null,null,"2.  CÓDIGO DE LOCAL EDUCATIVO :"]
[]
[null,null,null,"3. NOMBRE DEL SERVICIO :"]
[]
[null,null,null,"4. DISTRITO :"]
[]
[]
[null,null,null,"100. RESULTADO DEL EJERCICIO EDUCATIVO"]
[null,null,null,"Complete y remita esta sección entre diciembre de 2022 y enero de 2023."]
[null,null,null,"101. SITUACIÓN DEL EJERCICIO EDUCATIVO, POR SEMESTRE, CICLO Y SEXO"]
[null,null,null,"SITUACIÓN",null,null,null,"TOTAL",null,"SEMESTRE - I",null,null,null,"SEMESTRE - II"]
[null,null,null,null,null,null,null,null,null,"Auxiliar Técnico",null,"Técnico",null,"Auxiliar Técnico",null,"Técnico"]
[null,null,null,null,null,null,null,"H","M","H","M","H","M","H","M","H","M"]
[null,"00",null,"TOTAL",null,null,null,{"$f":"SUM(H27:H30)","v":0},0,0,0,0,0,{"$f":"SUM(N27:N30)","v":0},{"$f":"SUM(O27:O30)","v":0},{"$f":"SUM(P27:P30)","v":0},{"$f":"SUM(Q27:Q30)","v":0}]
[null,"01",null," Aprobados",null,"1/",null,{"$f":"SUM(J27,L27,N27,P27)","v":0},0]
[null,"02",null," Desaprobados",null,"2/",null,0,0]
[null,"03",null," Retirados",null,null,null,0,0]
[null,"04",null," Fallecidos",null,null,null,0,0]
[]
[null,null,null,"1/ Aprobados : Estudiantes que al finalizar el módulo fueron considerados aptos a ser promovidos al siguiente módulo."]
[null,null,null,"2/ Desaprobados : Estudiantes que sobrepasaron el límite de inasistencias y fueron considerados no apto para ser evaluados."]
[]
[null,null,null,"102. RETIRADOS POR CICLO Y SEXO, SEGÚN MOTIVO"]
[null,null,null,"SITUACIÓN",null,null,null,"TOTAL",null,"SEMESTRE - I",null,null,null,"SEMESTRE - II"]
[null,null,null,null,null,null,null,null,null,"Auxiliar Técnico",null,"Técnico",null,"Auxiliar Técnico",null,"Técnico"]
[null,null,null,null,null,null,null,"H","M","H","M","H","M","H","M","H","M"]
[null,"00",null,"TOTAL RETIRADOS",null,null,null,{"$f":"SUM(H40:H53)","v":0},0,0,0,0,0,{"$f":"SUM(N40:N53)","v":0},{"$f":"SUM(O40:O53)","v":0},{"$f":"SUM(P40:P53)","v":0},{"$f":"SUM(Q40:Q53)","v":0}]
[null,"01",null,"Situación económica",null,null,null,{"$f":"SUM(J40,L40,N40,P40)","v":0},{"$f":"SUM(K40,M40,O40,Q40)","v":0}]
[null,"02",null,"Ingreso a la universidad",null,null,null,0,0]
[null,"03",null,"Elección de otra carrera / especialidad",null,null,null,0,0]
[null,"04",null,"Enfermedad-Mental",null,null,null,0,0]
[null,"05",null,"Enfermedad-Cancer",null,null,null,{"$f":"SUM(J44,L44,N44,P44)","v":0},{"$f":"SUM(K44,M44,O44,Q44)","v":0}]
[null,"06",null,"Enfermedad-COVID19",null,null,null,0,0]
[null,"07",null,"Otra enfermedad",null,null,null,0,0]
[null,"08",null,"Adicción-Consumo de drogas",null,null,null,0,0]
[null,"09",null,"Adicción-Consumo de alcohol",null,null,null,0,0]
[null,"10",null,"Otro tipo de adicción",null,null,null,0,0]
[null,"11",null,"Conducta delictiva",null,null,null,0,0]
[null,"12",null,"Embarazo",null,null,null,0,0]
[null,"13",null,"Migración",null,null,null,0,0]
[null,"14",null,"Otro motivo",null,null,null,{"$f":"SUM(J53,L53,N53,P53)","v":0},{"$f":"SUM(K53,M53,O53,Q53)","v":0}]
[null,null,null,"Nota: Los totales de esta tabla deben ser iguales a la suma de lo reportado en el rubro “Retirados” de la tabla 101."]
[]
[null,null,null,"103. DESCRIPCIÓN DE OTROS "]
[{"$f":"SUM(A58:A67)","v":0},null,null,"NRO.","OTRA ENFERMEDAD",null,null,null,null,{"$f":"COUNTA(E58:J67)","v":0},"OTRO TIPO DE ADICCIÓN",null,null,null,null,null,{"$f":"COUNTA(K58:Q67)","v":0},"OTROS MOTIVOS DE RETIRO",null,null,null,null,null,{"$f":"COUNTA(R58:X67)","v":0}]
[{"$f":"IF(OR(E58<>\"\",K58<>\"\",R58<>\"\"),1,0)","v":0},null,null,"01"]
[{"$f":"IF(OR(E59<>\"\",K59<>\"\",R59<>\"\"),1,0)","v":0},null,null,"02"]
[0,null,null,"03"]
[0,null,null,"04"]
[0,null,null,"05"]
[0,null,null,"06"]
[0,null,null,"07"]
[0,null,null,"08"]
[0,null,null,"09"]
[0,null,null,"10"]
[null,null,null,"Nota: No se registran cantidades, solo debe especificar la descripción de lo reportado en los rubros “Otra enfermedad”, “Otro tipo de adicción” y “Otro motivo de retiro” de la tabla 102."]
[]
[null,null,null,"104. APROBADOS CON CERTIFICACIÓN Y SIN CERTIFICACIÓN POR CICLO Y SEXO"]
[null,null,null,"CONDICIÓN DE APROBADO",null,null,null,"TOTAL",null,"SEMESTRE - I",null,null,null,"SEMESTRE - II"]
[null,null,null,null,null,null,null,null,null,"Auxiliar Técnico",null,"Técnico",null,"Auxiliar Técnico",null,"Técnico"]
[null,null,null,null,null,null,null,"H","M","H","M","H","M","H","M","H","M"]
[null,"00",null,"TOTAL",null,null,null,{"$f":"SUM(H75:H76)","v":0},0,0,0,0,0,{"$f":"SUM(N75:N76)","v":0},{"$f":"SUM(O75:O76)","v":0},{"$f":"SUM(P75:P76)","v":0},{"$f":"SUM(Q75:Q76)","v":0}]
[null,"01",null," Con Certificación",null,null,null,{"$f":"SUM(J75,L75,N75,P75)","v":0},{"$f":"SUM(K75,M75,O75,Q75)","v":0}]
[null,"02",null," Sin Certificación",null,null,null,{"$f":"SUM(J76,L76,N76,P76)","v":0},{"$f":"SUM(K76,M76,O76,Q76)","v":0}]
[null,null,null,"Nota: Los totales de esta tabla deben ser igual a lo reportado en el rubro “Aprobados” de la tabla 101"]
[]
["01: Presencial",null,null,"105. MATRÍCULADOS, RETIRADOS, EGRESADOS Y TITULADOS EN 2022, POR SEMESTRE ACADÉMICO Y SEXO, SEGÚN DENOMINACIÓN DE LA OPCIÓN OCUPACIONAL "]
["02: Semipresencial",null,null,"CARRERAS",null,null,null,null,null,null,"TIPO DE MODALIDAD",null,"MATRICULADOS",null,null,null,null,null,null,null,"RETIRADOS",null,null,null,null,null,null,null,"EGRESADOS",null,null,null,null,null,null,null,"TITULADOS"]
["03: A Distancia",null,null,null,null,null,null,null,null,null,null,null,"Auxiliar Técnico",null,null,null,"Técnico",null,null,null,"Auxiliar Técnico",null,null,null,"Técnico",null,null,null,"Auxiliar Técnico",null,null,null,"Técnico",null,null,null,"Auxiliar Técnico",null,null,null,"Técnico"]
[null,null,null,null,null,null,null,null,null,null,null,null,"2022-I",null,"2022-II",null,"2022-I",null,"2022-II",null,"2022-I",null,"2022-II",null,"2022-I",null,"2022-II",null,"2022-I",null,"2022-II",null,"2022-I",null,"2022-II",null,"2022-I",null,"2022-II",null,"2022-I",null,"2022-II"]
[{"$f":"SUM(M84:AB84)","v":0},{"$f":"SUM(AC84:AR84)","v":0},null,"CÓDIGO",null,"DENOMINACIÓN",null,null,null,null,null,null,"H","M","H","M","H","M","H","M","H","M","H","M","H","M","H","M","H","M","H","M","H","M","H","M","H","M","H","M","H","M","H","M"]
[{"$f":"IF(AND(E84<>\"\",SUM(M84:AB84)=0),1,IF(AND(E84=\"\",SUM(M84:AB84)>0),2,IF(AND(E84<>\"\",SUM(M84:AB84)>0),3,0)))","v":1},{"$f":"IF(AND(E84<>\"\",SUM(AC84:AR84)=0),1,IF(AND(E84=\"\",SUM(AC84:AR84)>0),2,IF(AND(E84<>\"\",SUM(AC84:AR84)>0),3,0)))","v":1},null,"0000000000","TOTAL",null,null,null,null,null,null,null,{"$f":"SUM(M85:M104)","v":0},{"$f":"SUM(N85:N104)","v":0},{"$f":"SUM(O85:O104)","v":0},0,0,0,0,0,0,0,0,0,0,0,0,0,{"$f":"SUM(AC85:AC104)","v":0},0,0,0,0,0,0,0,0,0,0,0,0,0,0,0,null,null,null,{"$f":"SUM(M84:AB84)","v":0},{"$f":"SUM(AC84:AR84)","v":0}]
[{"$f":"IF(AND(E85<>\"\",SUM(M85:AB85)=0),1,IF(AND(E85=\"\",SUM(M85:AB85)>0),2,IF(AND(E85<>\"\",SUM(M85:AB85)>0),3,0)))","v":0},{"$f":"IF(AND(E85<>\"\",SUM(AC85:AR85)=0),1,IF(AND(E85=\"\",SUM(AC85:AR85)>0),2,IF(AND(E85<>\"\",SUM(AC85:AR85)>0),3,0)))","v":0},null,null,{"$f":"CONCATENATE(AT85,AU85)","v":""},null,null,null,null,null,null,null,null,null,null,null,null,null,null,null,null,null,null,null,null,null,null,null,null,null,null,null,null,null,null,null,null,null,null,null,null,null,null,null,null,{"$f":"IF(ISERROR(VLOOKUP($D85,CARBAS,2,FALSE)),\"\",VLOOKUP($D85,CARBAS,2,FALSE))","v":""},{"$f":"IF(ISERROR(VLOOKUP($D85,CARMED,2,FALSE)),\"\",VLOOKUP($D85,CARMED,2,FALSE))","v":""},{"$f":"SUM(M85:AB85)","v":0},{"$f":"SUM(AC85:AR85)","v":0}]
[0,0,null,null,"",null,null,null,null,null,null,null,null,null,null,null,null,null,null,null,null,null,null,null,null,null,null,null,null,null,null,null,null,null,null,null,null,null,null,null,null,null,null,null,null,"","",{"$f":"SUM(M86:AB86)","v":0},{"$f":"SUM(AC86:AR86)","v":0}]
[0,0,null,null,"",null,null,null,null,null,null,null,null,null,null,null,null,null,null,null,null,null,null,null,null,null,null,null,null,null,null,null,null,null,null,null,null,null,null,null,null,null,null,null,null,"","",0,0]
[0,0,null,null,"",null,null,null,null,null,null,null,null,null,null,null,null,null,null,null,null,null,null,null,null,null,null,null,null,null,null,null,null,null,null,null,null,null,null,null,null,null,null,null,null,"","",0,0]
[0,0,null,null,"",null,null,null,null,null,null,null,null,null,null,null,null,null,null,null,null,null,null,null,null,null,null,null,null,null,null,null,null,null,null,null,null,null,null,null,null,null,null,null,null,"","",0,0]
[0,0,null,null,"",null,null,null,null,null,null,null,null,null,null,null,null,null,null,null,null,null,null,null,null,null,null,null,null,null,null,null,null,null,null,null,null,null,null,null,null,null,null,null,null,"","",0,0]
[0,0,null,null,"",null,null,null,null,null,null,null,null,null,null,null,null,null,null,null,null,null,null,null,null,null,null,null,null,null,null,null,null,null,null,null,null,null,null,null,null,null,null,null,null,"","",0,0]
[0,0,null,null,"",null,null,null,null,null,null,null,null,null,null,null,null,null,null,null,null,null,null,null,null,null,null,null,null,null,null,null,null,null,null,null,null,null,null,null,null,null,null,null,null,"","",0,0]
[0,0,null,null,"",null,null,null,null,null,null,null,null,null,null,null,null,null,null,null,null,null,null,null,null,null,null,null,null,null,null,null,null,null,null,null,null,null,null,null,null,null,null,null,null,"","",0,0]
[0,0,null,null,"",null,null,null,null,null,null,null,null,null,null,null,null,null,null,null,null,null,null,null,null,null,null,null,null,null,null,null,null,null,null,null,null,null,null,null,null,null,null,null,null,"","",0,0]
[0,0,null,null,"",null,null,null,null,null,null,null,null,null,null,null,null,null,null,null,null,null,null,null,null,null,null,null,null,null,null,null,null,null,null,null,null,null,null,null,null,null,null,null,null,"","",0,0]
[0,0,null,null,"",null,null,null,null,null,null,null,null,null,null,null,null,null,null,null,null,null,null,null,null,null,null,null,null,null,null,null,null,null,null,null,null,null,null,null,null,null,null,null,null,"","",0,0]
[0,0,null,null,"",null,null,null,null,null,null,null,null,null,null,null,null,null,null,null,null,null,null,null,null,null,null,null,null,null,null,null,null,null,null,null,null,null,null,null,null,null,null,null,null,"","",0,0]
[0,0,null,null,"",null,null,null,null,null,null,null,null,null,null,null,null,null,null,null,null,null,null,null,null,null,null,null,null,null,null,null,null,null,null,null,null,null,null,null,null,null,null,null,null,"","",0,0]
[0,0,null,null,"",null,null,null,null,null,null,null,null,null,null,null,null,null,null,null,null,null,null,null,null,null,null,null,null,null,null,null,null,null,null,null,null,null,null,null,null,null,null,null,null,"","",0,0]
[0,0,null,null,"",null,null,null,null,null,null,null,null,null,null,null,null,null,null,null,null,null,null,null,null,null,null,null,null,null,null,null,null,null,null,null,null,null,null,null,null,null,null,null,null,"","",0,0]
[0,0,null,null,"",null,null,null,null,null,null,null,null,null,null,null,null,null,null,null,null,null,null,null,null,null,null,null,null,null,null,null,null,null,null,null,null,null,null,null,null,null,null,null,null,"","",0,0]
[0,0,null,null,"",null,null,null,null,null,null,null,null,null,null,null,null,null,null,null,null,null,null,null,null,null,null,null,null,null,null,null,null,null,null,null,null,null,null,null,null,null,null,null,null,"","",0,0]
[0,0,null,null,"",null,null,null,null,null,null,null,null,null,null,null,null,null,null,null,null,null,null,null,null,null,null,null,null,null,null,null,null,null,null,null,null,null,null,null,null,null,null,null,null,"","",0,0]
[0,0,null,null,"",null,null,null,null,null,null,null,null,null,null,null,null,null,null,null,null,null,null,null,null,null,null,null,null,null,null,null,null,null,null,null,null,null,null,null,null,null,null,null,null,"","",0,0]
[null,null,null,"1/ Egresados : Se considera a la persona que han culminado sus estudios, no presenta ninguna unidad didáctica pendiente de aprobación y han realizado las experiencias formativas en situaciones reales de trabajo o prácticas preprofesionales."]
[null,null,null,"2/ Titulados :  Es el estudiante que cuenta con el título de técnico (mínimo 2,000 Horas) o auxiliar técnico (mínimo 1,000 Horas)"]
[]
[null,null,null,"106. EGRESADOS POR SEXO, SEGÚN TIPO DE DISCAPACIDAD U OTRA CONDICIÓN EN LOS SEMESTRES 2022-I y II"]
[null,null,null,"CARRERAS Y/O PROGRAMAS DE ESTUDIOS",null,null,null,null,null,null,"TOTAL",null,"Discapacidad Intelectual",null,null,null,null,null,"Discapacidad Auditiva",null,null,null,"Discapacidad Visual",null,null,null,"Discapacidad Física o Motora",null,"Trastorno del Espectro Autista",null,"Sordoceguera",null,"Multidis capacidad",null,"Otra discapacidad u otra condición",null,"Ninguna (No tiene discapacidad)"]
[null,null,null,null,null,null,null,null,null,null,null,null,"Leve",null,"Moderada",null,"Severa",null,"Hipoacusia",null,"Sordera",null,"Baja visión",null,"Ceguera"]
[{"$f":"SUM(A113:A132)","v":0},null,null,"CÓDIGO",null,"DENOMINACIÓN",null,null,null,null,"H","M","H","M","H","M","H","M","H","M","H","M","H","M","H","M","H","M","H","M","H","M","H","M","H","M","H","M"]
[{"$f":"IF(AND(E112<>\"\",SUM(M112:AL112)=0),1,IF(AND(E112=\"\",SUM(M112:AL112)>0),2,IF(AND(E112<>\"\",SUM(M112:AL112)>0),3,0)))","v":1},null,null,"0000000000","TOTAL",null,null,null,null,null,{"$f":"SUM(K113:K132)","v":0},{"$f":"SUM(L113:L132)","v":0},{"$f":"SUM(M113:M132)","v":0},{"$f":"SUM(N113:N132)","v":0},{"$f":"SUM(O113:O132)","v":0},0,0,0,0,0,0,0,0,0,0,0,0,0,0,0,0,0,0,0,0,0,0,{"$f":"SUM(AL113:AL132)","v":0}]
[{"$f":"IF(AND(E113<>\"\",SUM(M113:AL113)=0),1,IF(AND(E113=\"\",SUM(M113:AL113)>0),2,IF(AND(E113<>\"\",SUM(M113:AL113)>0),3,0)))","v":0},null,null,{"$f":"IF(D85<>\"\",D85,\"\")","v":""},{"$f":"CONCATENATE(AT113,AU113)","v":""},null,null,null,null,null,{"$f":"SUM(M113,O113,Q113,S113,U113,W113,Y113,AA113,AC113,AE113,AG113,AI113,AK113)","v":0},{"$f":"SUM(N113,P113,R113,T113,V113,X113,Z113,AB113,AD113,AF113,AH113,AJ113,AL113)","v":0},null,null,null,null,null,null,null,null,null,null,null,null,null,null,null,null,null,null,null,null,null,null,null,null,null,null,null,null,null,null,null,null,null,{"$f":"IF(ISERROR(VLOOKUP($D113,CARBAS,2,FALSE)),\"\",VLOOKUP($D113,CARBAS,2,FALSE))","v":""},{"$f":"IF(ISERROR(VLOOKUP($D113,CARMED,2,FALSE)),\"\",VLOOKUP($D113,CARMED,2,FALSE))","v":""}]
[{"$f":"IF(AND(E114<>\"\",SUM(M114:AL114)=0),1,IF(AND(E114=\"\",SUM(M114:AL114)>0),2,IF(AND(E114<>\"\",SUM(M114:AL114)>0),3,0)))","v":0},null,null,"","",null,null,null,null,null,{"$f":"SUM(M114,O114,Q114,S114,U114,W114,Y114,AA114,AC114,AE114,AG114,AI114,AK114)","v":0},{"$f":"SUM(N114,P114,R114,T114,V114,X114,Z114,AB114,AD114,AF114,AH114,AJ114,AL114)","v":0},null,null,null,null,null,null,null,null,null,null,null,null,null,null,null,null,null,null,null,null,null,null,null,null,null,null,null,null,null,null,null,null,null,{"$f":"IF(ISERROR(VLOOKUP($D114,CARBAS,2,FALSE)),\"\",VLOOKUP($D114,CARBAS,2,FALSE))","v":""},""]
[0,null,null,"","",null,null,null,null,null,0,0,null,null,null,null,null,null,null,null,null,null,null,null,null,null,null,null,null,null,null,null,null,null,null,null,null,null,null,null,null,null,null,null,null,"",""]
[0,null,null,"","",null,null,null,null,null,0,0,null,null,null,null,null,null,null,null,null,null,null,null,null,null,null,null,null,null,null,null,null,null,null,null,null,null,null,null,null,null,null,null,null,"",""]
[0,null,null,"","",null,null,null,null,null,0,0,null,null,null,null,null,null,null,null,null,null,null,null,null,null,null,null,null,null,null,null,null,null,null,null,null,null,null,null,null,null,null,null,null,"",""]
[0,null,null,"","",null,null,null,null,null,0,0,null,null,null,null,null,null,null,null,null,null,null,null,null,null,null,null,null,null,null,null,null,null,null,null,null,null,null,null,null,null,null,null,null,"",""]
[0,null,null,"","",null,null,null,null,null,0,0,null,null,null,null,null,null,null,null,null,null,null,null,null,null,null,null,null,null,null,null,null,null,null,null,null,null,null,null,null,null,null,null,null,"",""]
[0,null,null,"","",null,null,null,null,null,0,0,null,null,null,null,null,null,null,null,null,null,null,null,null,null,null,null,null,null,null,null,null,null,null,null,null,null,null,null,null,null,null,null,null,"",""]
[0,null,null,"","",null,null,null,null,null,{"$f":"SUM(M121,O121,Q121,S121,U121,W121,Y121,AA121,AC121,AE121,AG121,AI121,AK121)","v":0},{"$f":"SUM(N121,P121,R121,T121,V121,X121,Z121,AB121,AD121,AF121,AH121,AJ121,AL121)","v":0},null,null,null,null,null,null,null,null,null,null,null,null,null,null,null,null,null,null,null,null,null,null,null,null,null,null,null,null,null,null,null,null,null,"",""]
[0,null,null,"",{"$f":"CONCATENATE(AT122,AU122)","v":""},null,null,null,null,null,0,0,null,null,null,null,null,null,null,null,null,null,null,null,null,null,null,null,null,null,null,null,null,null,null,null,null,null,null,null,null,null,null,null,null,"",""]
[0,null,null,"",{"$f":"CONCATENATE(AT123,AU123)","v":""},null,null,null,null,null,0,0,null,null,null,null,null,null,null,null,null,null,null,null,null,null,null,null,null,null,null,null,null,null,null,null,null,null,null,null,null,null,null,null,null,"",""]
[0,null,null,"","",null,null,null,null,null,0,0,null,null,null,null,null,null,null,null,null,null,null,null,null,null,null,null,null,null,null,null,null,null,null,null,null,null,null,null,null,null,null,null,null,"",""]
[0,null,null,"","",null,null,null,null,null,0,0,null,null,null,null,null,null,null,null,null,null,null,null,null,null,null,null,null,null,null,null,null,null,null,null,null,null,null,null,null,null,null,null,null,"",""]
[0,null,null,"","",null,null,null,null,null,0,0,null,null,null,null,null,null,null,null,null,null,null,null,null,null,null,null,null,null,null,null,null,null,null,null,null,null,null,null,null,null,null,null,null,"",""]
[0,null,null,"","",null,null,null,null,null,0,0,null,null,null,null,null,null,null,null,null,null,null,null,null,null,null,null,null,null,null,null,null,null,null,null,null,null,null,null,null,null,null,null,null,"",""]
[0,null,null,"","",null,null,null,null,null,0,0,null,null,null,null,null,null,null,null,null,null,null,null,null,null,null,null,null,null,null,null,null,null,null,null,null,null,null,null,null,null,null,null,null,"",""]
[0,null,null,"","",null,null,null,null,null,0,0,null,null,null,null,null,null,null,null,null,null,null,null,null,null,null,null,null,null,null,null,null,null,null,null,null,null,null,null,null,null,null,null,null,"",""]
[0,null,null,"","",null,null,null,null,null,0,0,null,null,null,null,null,null,null,null,null,null,null,null,null,null,null,null,null,null,null,null,null,null,null,null,null,null,null,null,null,null,null,null,null,"",""]
[0,null,null,"","",null,null,null,null,null,0,0,null,null,null,null,null,null,null,null,null,null,null,null,null,null,null,null,null,null,null,null,null,null,null,null,null,null,null,null,null,null,null,null,null,"",""]
[0,null,null,"","",null,null,null,null,null,0,0,null,null,null,null,null,null,null,null,null,null,null,null,null,null,null,null,null,null,null,null,null,null,null,null,null,null,null,null,null,null,null,null,null,"",""]
[]
[null,null,null,"107. TITULADOS POR SEXO, SEGÚN TIPO DE DISCAPACIDAD U OTRA CONDICIÓN EN LOS SEMESTRES 2022-I y II"]
[null,null,null,"CARRERAS Y/O PROGRAMAS DE ESTUDIOS",null,null,null,null,null,null,"TOTAL",null,"Discapacidad Intelectual",null,null,null,null,null,"Discapacidad Auditiva",null,null,null,"Discapacidad Visual",null,null,null,"Discapacidad Física o Motora",null,"Trastorno del Espectro Autista",null,"Sordoceguera",null,"Multidis capacidad",null,"Otra discapacidad u otra condición",null,"Ninguna (No tiene discapacidad)"]
[null,null,null,null,null,null,null,null,null,null,null,null,"Leve",null,"Moderada",null,"Severa",null,"Hipoacusia",null,"Sordera",null,"Baja visión",null,"Ceguera"]
[{"$f":"SUM(A139:A158)","v":0},null,null,"CÓDIGO",null,"DENOMINACIÓN",null,null,null,null,"H","M","H","M","H","M","H","M","H","M","H","M","H","M","H","M","H","M","H","M","H","M","H","M","H","M","H","M"]
[{"$f":"IF(AND(E138<>\"\",SUM(M138:AL138)=0),1,IF(AND(E138=\"\",SUM(M138:AL138)>0),2,IF(AND(E138<>\"\",SUM(M138:AL138)>0),3,0)))","v":1},null,null,"0000000000","TOTAL",null,null,null,null,null,{"$f":"SUM(K139:K158)","v":0},{"$f":"SUM(L139:L158)","v":0},{"$f":"SUM(M139:M158)","v":0},{"$f":"SUM(N139:N158)","v":0},{"$f":"SUM(O139:O158)","v":0},{"$f":"SUM(P139:P158)","v":0},{"$f":"SUM(Q139:Q158)","v":0},{"$f":"SUM(R139:R158)","v":0},{"$f":"SUM(S139:S158)","v":0},{"$f":"SUM(T139:T158)","v":0},{"$f":"SUM(U139:U158)","v":0},{"$f":"SUM(V139:V158)","v":0},{"$f":"SUM(W139:W158)","v":0},{"$f":"SUM(X139:X158)","v":0},{"$f":"SUM(Y139:Y158)","v":0},{"$f":"SUM(Z139:Z158)","v":0},{"$f":"SUM(AA139:AA158)","v":0},{"$f":"SUM(AB139:AB158)","v":0},{"$f":"SUM(AC139:AC158)","v":0},{"$f":"SUM(AD139:AD158)","v":0},{"$f":"SUM(AE139:AE158)","v":0},{"$f":"SUM(AF139:AF158)","v":0},{"$f":"SUM(AG139:AG158)","v":0},{"$f":"SUM(AH139:AH158)","v":0},{"$f":"SUM(AI139:AI158)","v":0},{"$f":"SUM(AJ139:AJ158)","v":0},{"$f":"SUM(AK139:AK158)","v":0},{"$f":"SUM(AL139:AL158)","v":0}]
[0,null,null,{"$f":"IF(D85<>\"\",D85,\"\")","v":""},{"$f":"CONCATENATE(AT139,AU139)","v":""},null,null,null,null,null,{"$f":"SUM(M139,O139,Q139,S139,U139,W139,Y139,AA139,AC139,AE139,AG139,AI139,AK139)","v":0},{"$f":"SUM(N139,P139,R139,T139,V139,X139,Z139,AB139,AD139,AF139,AH139,AJ139,AL139)","v":0},null,null,null,null,null,null,null,null,null,null,null,null,null,null,null,null,null,null,null,null,null,null,null,null,null,null,null,null,null,null,null,null,null,"",""]
[0,null,null,{"$f":"IF(D86<>\"\",D86,\"\")","v":""},"",null,null,null,null,null,{"$f":"SUM(M140,O140,Q140,S140,U140,W140,Y140,AA140,AC140,AE140,AG140,AI140,AK140)","v":0},{"$f":"SUM(N140,P140,R140,T140,V140,X140,Z140,AB140,AD140,AF140,AH140,AJ140,AL140)","v":0},null,null,null,null,null,null,null,null,null,null,null,null,null,null,null,null,null,null,null,null,null,null,null,null,null,null,null,null,null,null,null,null,null,"",""]
[0,null,null,"","",null,null,null,null,null,0,0,null,null,null,null,null,null,null,null,null,null,null,null,null,null,null,null,null,null,null,null,null,null,null,null,null,null,null,null,null,null,null,null,null,"",""]
[0,null,null,"","",null,null,null,null,null,0,0,null,null,null,null,null,null,null,null,null,null,null,null,null,null,null,null,null,null,null,null,null,null,null,null,null,null,null,null,null,null,null,null,null,"",""]
[0,null,null,"","",null,null,null,null,null,0,0,null,null,null,null,null,null,null,null,null,null,null,null,null,null,null,null,null,null,null,null,null,null,null,null,null,null,null,null,null,null,null,null,null,"",""]
[0,null,null,"","",null,null,null,null,null,0,0,null,null,null,null,null,null,null,null,null,null,null,null,null,null,null,null,null,null,null,null,null,null,null,null,null,null,null,null,null,null,null,null,null,"",""]
[0,null,null,"","",null,null,null,null,null,0,0,null,null,null,null,null,null,null,null,null,null,null,null,null,null,null,null,null,null,null,null,null,null,null,null,null,null,null,null,null,null,null,null,null,"",""]
[0,null,null,"","",null,null,null,null,null,0,0,null,null,null,null,null,null,null,null,null,null,null,null,null,null,null,null,null,null,null,null,null,null,null,null,null,null,null,null,null,null,null,null,null,"",""]
[0,null,null,"","",null,null,null,null,null,0,0,null,null,null,null,null,null,null,null,null,null,null,null,null,null,null,null,null,null,null,null,null,null,null,null,null,null,null,null,null,null,null,null,null,"",""]
[0,null,null,"",{"$f":"CONCATENATE(AT148,AU148)","v":""},null,null,null,null,null,0,0,null,null,null,null,null,null,null,null,null,null,null,null,null,null,null,null,null,null,null,null,null,null,null,null,null,null,null,null,null,null,null,null,null,{"$f":"IF(ISERROR(VLOOKUP($D148,CARBAS,2,FALSE)),\"\",VLOOKUP($D148,CARBAS,2,FALSE))","v":""},{"$f":"IF(ISERROR(VLOOKUP($D148,CARMED,2,FALSE)),\"\",VLOOKUP($D148,CARMED,2,FALSE))","v":""}]
[0,null,null,"",{"$f":"CONCATENATE(AT149,AU149)","v":""},null,null,null,null,null,{"$f":"SUM(M149,O149,Q149,S149,U149,W149,Y149,AA149,AC149,AE149,AG149,AI149,AK149)","v":0},{"$f":"SUM(N149,P149,R149,T149,V149,X149,Z149,AB149,AD149,AF149,AH149,AJ149,AL149)","v":0},null,null,null,null,null,null,null,null,null,null,null,null,null,null,null,null,null,null,null,null,null,null,null,null,null,null,null,null,null,null,null,null,null,"",""]
[0,null,null,"","",null,null,null,null,null,0,0,null,null,null,null,null,null,null,null,null,null,null,null,null,null,null,null,null,null,null,null,null,null,null,null,null,null,null,null,null,null,null,null,null,"",""]
[0,null,null,"","",null,null,null,null,null,0,0,null,null,null,null,null,null,null,null,null,null,null,null,null,null,null,null,null,null,null,null,null,null,null,null,null,null,null,null,null,null,null,null,null,"",""]
[0,null,null,"","",null,null,null,null,null,0,0,null,null,null,null,null,null,null,null,null,null,null,null,null,null,null,null,null,null,null,null,null,null,null,null,null,null,null,null,null,null,null,null,null,"",""]
[0,null,null,"","",null,null,null,null,null,0,0,null,null,null,null,null,null,null,null,null,null,null,null,null,null,null,null,null,null,null,null,null,null,null,null,null,null,null,null,null,null,null,null,null,"",""]
[0,null,null,"","",null,null,null,null,null,0,0,null,null,null,null,null,null,null,null,null,null,null,null,null,null,null,null,null,null,null,null,null,null,null,null,null,null,null,null,null,null,null,null,null,"",""]
[0,null,null,"","",null,null,null,null,null,0,0,null,null,null,null,null,null,null,null,null,null,null,null,null,null,null,null,null,null,null,null,null,null,null,null,null,null,null,null,null,null,null,null,null,"",""]
[0,null,null,"","",null,null,null,null,null,0,0,null,null,null,null,null,null,null,null,null,null,null,null,null,null,null,null,null,null,null,null,null,null,null,null,null,null,null,null,null,null,null,null,null,"",""]
[0,null,null,"","",null,null,null,null,null,0,0,null,null,null,null,null,null,null,null,null,null,null,null,null,null,null,null,null,null,null,null,null,null,null,null,null,null,null,null,null,null,null,null,null,"",""]
[0,null,null,"","",null,null,null,null,null,0,0,null,null,null,null,null,null,null,null,null,null,null,null,null,null,null,null,null,null,null,null,null,null,null,null,null,null,null,null,null,null,null,null,null,"",""]
[]
[null,null,null,"108.","¿CUÁNTOS ESTUDIANTES QUE INGRESARON A ESTA INSTITUCIÓN EN EL CICLO/MÓDULO I DEL PERIODO 2022, SON EGRESADOS DEL 5º AÑO DE EDUCACIÓN SECUNDARIA DEL PERIODO 2021, PARA AUXILIAR TÉCNICO Y TÉCNICO?"]
[null,null,null,"SEMESTRE",null,null,null,"Número de estudiantes ingresantes al primer ciclo en el periodo 2022, que egresaron en el 5º de Secundaria del 2021"]
[null,null,null,null,null,null,null,"AUXILIAR TÉCNICO",null,null,null,"TÉCNICO"]
[null,null,null,null,null,null,null,"H",null,"M",null,"H",null,"M"]
[null,"00",null,"TOTAL",null,null,{"$f":"H164+J164+L164+N164","v":0},{"$f":"SUM(H165:I166)","v":0},null,{"$f":"SUM(J165:K166)","v":0},null,{"$f":"SUM(L165:M166)","v":0},null,{"$f":"SUM(N165:O166)","v":0}]
[null,"01",null,"I -2021",null,null,{"$f":"H165+J165+L165+N165","v":0}]
[null,"02",null,"II - 2021",null,null,{"$f":"H166+J166+L166+N166","v":0}]
[]
[null,null,null,"DATOS DEL RESPONSABLE DEL LLENADO DE LA CÉDULA"]
[]
[null,null,null,null,"NOMBRES Y APELLIDOS",null,null,null,"CARGO",null,null,null,"CORREO ELECTRÓNICO",null,null,null,null,"TELÉFONO"]
[null,"1"]
[null,"2"]
[null,"3"]
[]
[]
[]
["DIRECTOR(A)"]
["SUB DIRECTOR(A)"]
["DOCENTE"]
["COORDINADOR(A)"]
["ASESOR"]
["ADMINISTRATIVO"]
["ASISTENTE"]
["AUXILIAR"]
["SECRETARIA(O)"]
["ESTADÍSTICO"]
["ESPECIALISTA"]
["BIBLIOTECARIO"]
["CARE"]
["COMANDANTE PNP"]
["CONTADOR"]
["DAIP"]
["DIGITADOR(A)"]
["GERENTE"]
["JEFE ACADÉMICO"]
["JEFE ADMINISTRATIVO"]
["JEFE DE ÁREA"]
["JEFE DE LABORATORIO"]
["JEFE DE PERSONAL"]
["JEFE DE SEDE"]
["JEFE DE UNIDAD"]
["OFICINISTA"]
["OPERADOR DE SISTEMAS"]
["PERSONAL DE SERVICIO"]
["PROGRAMADOR"]
["PROMOTOR(A)"]
["PSICOLOGO"]
["REGISTRADOR(A)"]
["REPRESENTANTE LEGAL"]
["SOPORTE TECNOLOGICO"]
["TÉCNICO ADMINISTRATIVO"]
["TESORERO(A)"]
["TRABAJADOR SOCIAL"]
["TUTOR"]
["OTROS"]

{"sheet":"Enviar","index":2,"n_rows":9,"n_cols":3,"rows_kept":9,"cut":false,"hidden":true,"merged":[[0,0,0,3],[1,0,1,3]]}
["CENSO ESCOLAR 2022"]
["RESULTADO DEL EJERCICIO EDUCATIVO"]
[]
[]
[null,"Paso 1:","Realice el ENVÍO con su clave EOL."]
[]
[null,"Paso 2:","Una vez realizado el ENVÍO,  Revise su constancia de envio."]
[]
[null,"  ADVERTENCIA","Asegúrese de registrar toda la información del nivel informante"]

{"sheet":"Carreras","index":3,"n_rows":560,"n_cols":6,"rows_kept":560,"cut":false,"hidden":true,"merged":[]}
[null,"AUXILIAR TÉCNICO  (1 AÑO DE ESTUDIO)",null,null,"TÉCNICO (2 AÑOS DE ESTUDIO)"]
[null,"CÓDIGO","CARRERA",null,"CÓDIGO","CARRERA"]
[null,"CAT7326457","ACABADOS EN EDIFICACIONES Y OBRAS CIVILES",null,"CTE9999142","ADMINISTRACIÓN DE LA CONSTRUCCIÓN"]
[null,"CAT8116453","ACTIVIDADES AGRARIAS",null,"CTE4196500","ADMINISTRACIÓN HOTELERA"]
[null,"CAT0146488","ACTIVIDADES ARTÍSTICAS, RECREATIVAS Y DE ENTRETENIMIENTO",null,"CTE9999064","ADMINISTRACIÓN INDUSTRIAL"]
[null,"CAT0136498","ACTIVIDADES DEPORTIVAS DE ESPARCIMIENTO Y DE ENTRETENIMIENTO",null,"CTE7321442","ALBAÑILERÍA"]
[null,"CAT4196480","ADMINISTRACIÓN",null,"CTE9999071","ALMACEN Y DESPACHO"]
[null,"CAT9999142","ADMINISTRACIÓN DE LA CONSTRUCCIÓN",null,"CTE9999003","APOYO ADMINISTRATIVO"]
[null,"CAT4196383","ADMINISTRACIÓN HOTELERA",null,"CTE9999116","APROVECHAMIENTO FORESTAL"]
[null,"CAT9999064","ADMINISTRACIÓN INDUSTRIAL",null,"CTE2146533","ARTESANÍA Y MANUALIDADES"]
[null,"CAT4196282","ADMINISTRACIÓN Y COMERCIO",null,"CTE9999034","ASESORAMIENTO OPERATIVO Y COMERCIAL DE PRODUCTOS BANCARIOS Y FINANCIEROS"]
[null,"CAT8116464","AGRICULTURA DE LA COSTA",null,"CTE9999111","ASISTENCIA DE COCINA"]
[null,"CAT8116420","AGRICULTURA DE LA SIERRA",null,"CTE9999010","ASISTENCIA EN CONTABILIDAD"]
[null,"CAT8116231","AGRICULTURA DE SIERRA",null,"CTE9999148","ASISTENCIA EN LOGÍSTICA Y ALMACENES"]
[null,"CAT8116384","AGRICULTURA ORGÁNICA",null,"CTE9999066","ASISTENTE ADMINISTRATIVO"]
[null,"CAT8116316","AGROPECUARIA",null,"CTE9999126","ASISTENTE DE GERENCIA"]
[null,"CAT7326327","ALBAÑILERIA",null,"CTE9999102","ASISTENTE DE LOGÍSTICA Y PRODUCCIÓN"]
[null,"CAT9999071","ALMACEN Y DESPACHO",null,"CTE9999032","ASISTENTE EN CONTABILIDAD"]
[null,"CAT8116485","APICULTURA",null,"CTE9999117","ATENCIÓN AL CLIENTE"]
[null,"CAT9999003","APOYO ADMINISTRATIVO",null,"CTE9999109","ATENCIÓN DE INCIDENCIAS Y PROBLEMAS DE OPERATIVIDAD EN EL CENTRO DE COMPUTO"]
[null,"CAT9999116","APROVECHAMIENTO FORESTAL",null,"CTE9999098","AUTOTRONICA"]
[null,"CAT2146332","ARTES Y MANUALIDADES",null,"CTE9999096","AUXILIAR D EDUCACIÓN"]
[null,"CAT2146406","ARTESANÍA",null,"CTE9999112","AUXILIAR DESPACHO ADUANERO"]
[null,"CAT2146352","ARTESANÍA DE METALES Y PIEDRAS",null,"CTE9999121","AVIACIÓN COMERCIAL"]
[null,"CAT2146539","ARTESANÍA DECORATIVA",null,"CTE9999129","AVICULTURA Y CRIANZA DE ANIMALES MENORES"]
[null,"CAT2146454","ARTESANÍA EN CERÁMICA",null,"CTE0121380","BAR Y COCTELERIA"]
[null,"CAT2146440","ARTESANÍA EN CUERO",null,"CTE9999059","BUFFET CREATIVO INFANTIL"]
[null,"CAT2140023","ARTESANÍA EN CUERO Y PIELES",null,"CTE8111452","CAFICULTURA ORGÁNICA"]
[null,"CAT2146439","ARTESANÍA EN MADERA",null,"CTE9999146","CALCULO ESTRUCTURAL"]
[null,"CAT2146298","ARTESANÍA EN METALES",null,"CTE7321447","CARPINTERÍA"]
[null,"CAT2146264","ARTESANÍA EN METALES Y PIEDRAS",null,"CTE7321448","CARPINTERÍA Y EBANISTERÍA"]
[null,"CAT2146403","ARTESANÍA EN PIEDRA TALLADA",null,"CTE0121381","COCINA"]
[null,"CAT2146359","ARTESANÍA EN TEXTILES",null,"CTE0126504","COCINA NACIONAL"]
[null,"CAT2146291","ARTESANÍA MANUALES",null,"CTE0121382","COCINA Y REPOSTERÍA"]
[null,"CAT2146435","ARTESANÍA TALLADO EN PIEDRA",null,"CTE9999058","COMIDAS Y POSTRES CREATIVOS"]
[null,"CAT2146292","ARTESANÍA TEXTIL",null,"CTE6111397","COMPUTACIÓN"]
[null,"CAT2146202","ARTESANÍA Y MANUALIDADES",null,"CTE9999017","COMPUTACIÓN ELEMENTAL"]
[null,"CAT9999034","ASESORAMIENTO OPERATIVO Y COMERCIAL DE PRODUCTOS BANCARIOS Y FINANCIEROS",null,"CTE9999103","COMPUTACIÓN-DIGITACIÓN"]
[null,"CAT9999111","ASISTENCIA DE COCINA",null,"CTE9999143","CONCENTRACION DE MINERALES POR SEPARACION FISICA"]
[null,"CAT7120013","ASISTENCIA DE ELECTRÓNICA",null,"CTE9999067","CONFECCION DE ARTICULOS DE CUERO Y MARROQUERIA"]
[null,"CAT7210013","ASISTENCIA DE PANADERÍA Y PASTELERÍA",null,"CTE9999120","CONFECCION DE ARTICULOS DE CUERO Y PIEL"]
[null,"CAT0126262","ASISTENCIA EN COCINA",null,"CTE7231430","CONFECCIÓN DE CALZADO"]
[null,"CAT9999010","ASISTENCIA EN CONTABILIDAD",null,"CTE9999041","CONFECCIÓN DE PRENDAS DE DAMAS"]
[null,"CAT7110013","ASISTENCIA EN ELECTRICIDAD",null,"CTE7231431","CONFECCIÓN INDUSTRIAL"]
[null,"CAT9999148","ASISTENCIA EN LOGÍSTICA Y ALMACENES",null,"CTE9999070","CONFECCIÓN INDUSTRIAL TEJIDO A TELAR"]
[null,"CAT7216263","ASISTENCIA EN PANADERÍA Y PASTELERÍA",null,"CTE7231432","CONFECCIÓN TEXTIL"]
[null,"CAT2116307","ASISTENCIA TÉCNICA DE PRODUCCIÓN Y REALIZACIÓN AUDIOVISUAL",null,"CTE7236513","CONFECCIONES"]
[null,"CAT9999066","ASISTENTE ADMINISTRATIVO",null,"CTE9999087","CONSEJERÍA BÍBLICA"]
[null,"CAT4190013","ASISTENTE ADMINISTRATIVO BILINGÜE",null,"CTE9999084","CONSEJERÍA FAMILIAR"]
[null,"CAT4196456","ASISTENTE ADMINISTRATIVO CASTELLANO",null,"CTE9999088","CONSEJERÍA MINISTERIAL"]
[null,"CAT9216210","ASISTENTE ADULTO MAYOR",null,"CTE9999089","CONSEJERÍA TEOLÓGICA"]
[null,"CAT0126400","ASISTENTE BÁSICA DE HOTELERÍA Y TURISMO",null,"CTE7211402","CONSERVACIÓN DE CARNES, PRODUCTOS HIDROBIOLÓGICOS Y VEGETALES"]
[null,"CAT0126265","ASISTENTE DE COCINA Y PASTELERÍA",null,"CTE9999061","CONSTRUCCIÓN DE MUEBLES DE BAÑO EN MELAMINE"]
[null,"CAT9999126","ASISTENTE DE GERENCIA",null,"CTE9999060","CONSTRUCCIÓN DE MUEBLES DE SALA EN MELAMINE"]
[null,"CAT9999102","ASISTENTE DE LOGÍSTICA Y PRODUCCIÓN",null,"CTE7131416","CONSTRUCCIONES METÁLICAS"]
[null,"CAT9226344","ASISTENTE DE NIÑOS",null,"CTE9999005","CONTROL EN PROCESOS DE ALMACENAMIENTO"]
[null,"CAT7216468","ASISTENTE DE PRODUCTOS DE PASTELERÍA",null,"CTE9999011","CORTE, APARADO Y ARMADO DE CALZADO"]
[null,"CAT0126318","ASISTENTE EN BAR Y COCTELERA",null,"CTE0111458","COSMETOLOGÍA"]
[null,"CAT7326267","ASISTENTE EN CARPINTERÍA",null,"CTE0116509","COSMETOLOGÍA Y PELUQUERÍA"]
[null,"CAT0126189","ASISTENTE EN COCINA",null,"CTE9999108","CUIDADO, TRATAMIENTOS, COLORACIÓN Y TRANSFORMACIÓN DE LA HEBRA CAPILAR"]
[null,"CAT0126462","ASISTENTE EN COCINA Y REPOSTERÍA",null,"CTE9999113","CUIDADOS DEL ADULTO MAYOR"]
[null,"CAT7216531","ASISTENTE EN COCINA, PASTELERÍA Y PANADERÍA",null,"CTE9999038","CULTIVO DE A\u0081RBOLES FRUTALES Y BERRIES"]
[null,"CAT6116190","ASISTENTE EN COMPUTACIÓN",null,"CTE9999132","CURSO CERTIFICABLE ASISTENTE EN ELABORACIÓN DE PÁ\u0081GINAS SOCIALES E INTERNET"]
[null,"CAT9999032","ASISTENTE EN CONTABILIDAD",null,"CTE9999131","CURSO CERTIFICABLE DISEÑO GRÁFICO"]
[null,"CAT6116432","ASISTENTE EN EL MANEJO Y OPERACIÓN DE COMPUTADORAS",null,"CTE9999133","CURSO CERTIFICABLE ELABORACIÓN DE BOCADITOS"]
[null,"CAT7126268","ASISTENTE EN ELECTRICIDAD Y ELECTRÓNICA",null,"CTE9999130","CURSO CERTIFICABLE SISTEMAS OPERATIVOS"]
[null,"CAT7136393","ASISTENTE EN ESTRUCTURAS METÁLICAS",null,"CTE9999094","CURSOS DE EXTENSIÓN EDUCATIVA"]
[null,"CAT7126345","ASISTENTE EN INSTALACIONES ELECTROTÉCNICAS",null,"CTE9999021","DECORACIÓN DE EVENTOS ESPECIALES"]
[null,"CAT4136394","ASISTENTE EN LOGÍSTICA Y ALMACENES",null,"CTE9999081","DISEÑO GRÁFICO"]
[null,"CAT6116269","ASISTENTE EN OPERACIÓN DE COMPUTADORAS",null,"CTE9999095","DISEÑO GRÁFICO PUBLICITARIO DIGITAL"]
[null,"CAT7216224","ASISTENTE EN PANADERÍA",null,"CTE9999063","DISEÑO TÉCNICO"]
[null,"CAT7216191","ASISTENTE EN PANADERÍA Y PASTELERÍA",null,"CTE7321449","EBANISTERÍA"]
[null,"CAT7216425","ASISTENTE EN PASTELERÍA",null,"CTE9999044","ELABORACIÓN DE BOCADITOS PARA BUFFET"]
[null,"CAT0126320","ASISTENTE EN REPOSTERÍA",null,"CTE9999079","ELABORACION DE PRENDAS DE VESTIR EN TEJIDO ARTESANAL Y MAQUINA TEJEDORA MANUAL"]
[null,"CAT4156195","ASISTENTE EN SECRETARIADO",null,"CTE9999026","ELABORACIÓN DE PRODUCTOS ARTESANALES"]
[null,"CAT9999117","ATENCIÓN AL CLIENTE",null,"CTE9999043","ELABORACIÓN DE TORTAS COMERCIALES"]
[null,"CAT9999109","ATENCIÓN DE INCIDENCIAS Y PROBLEMAS DE OPERATIVIDAD EN EL CENTRO DE COMPUTO",null,"CTE7111409","ELECTRICIDAD"]
[null,"CAT9999098","AUTOTRONICA",null,"CTE7121412","ELECTRÓNICA"]
[null,"CAT9999096","AUXILIAR D EDUCACIÓN",null,"CTE9999018","ELECTRONICA DE CONSUMO"]
[null,"CAT9999112","AUXILIAR DESPACHO ADUANERO",null,"CTE7121414","EQUIPOS ELECTRÓNICOS DE CONSUMO"]
[null,"CAT9999121","AVIACIÓN COMERCIAL",null,"CTE9999107","ESCULTURA DE CORTE DE CABELLO, PEINADO Y EXTENSIONES"]
[null,"CAT9999129","AVICULTURA Y CRIANZA DE ANIMALES MENORES",null,"CTE0116534","ESTÉTICA PERSONAL"]
[null,"CAT0126418","BAR Y COCTELERA",null,"CTE9999002","ESTILISMO"]
[null,"CAT0120023","BARMAN",null,"CTE9999083","ESTUDIOS BÍBLICOS"]
[null,"CAT2146405","BISUTERÍA",null,"CTE9999091","ESTUDIOS BÍBLICOS MINISTERIALES"]
[null,"CAT7236396","BORDADO DE PRENDAS DE VESTIR",null,"CTE9999090","ESTUDIOS BÍBLICOS TEOLÓGICOS"]
[null,"CAT7236192","BORDADOS",null,"CTE9999085","ESTUDIOS MINISTERIALES"]
[null,"CAT7236278","BORDADOS A MÁQUINA",null,"CTE9999086","ESTUDIOS TEOLÓGICOS"]
[null,"CAT7236375","BORDADOS COMPUTARIZADOS A MÁQUINA Y MANUALES",null,"CTE9999092","ESTUDIOS TEOLÓGICOS MINISTERIALES"]
[null,"CAT7236507","BORDADOS COMPUTARIZADOS Y MANUALES",null,"CTE2146299","FABRICACIÓN ARTESANAL DE PRODUCTOS DE MADERA"]
[null,"CAT7236251","BORDADOS MANUALES Y COMPUTARIZADOS",null,"CTE7236503","FABRICACIÓN DE PRENDAS DE VESTIR"]
[null,"CAT9999059","BUFFET CREATIVO INFANTIL",null,"CTE9999015","FABRICACION DE PRODUCTOS DERIVADOS DE MADERA"]
[null,"CAT8116483","CAFICULTURA ORGÁNICA",null,"CTE9999073","FABRICACIÓN DE TEJIDURIA"]
[null,"CAT4196346","CAJERO",null,"CTE9999075","FABRICACIÓN TEXTIL DE PRENDAS DE VESTIR, ACCESORIOS Y ARTICULOS DECORATIVOS TEJIDOS A MANO"]
[null,"CAT9999146","CALCULO ESTRUCTURAL",null,"CTE0126356","GASTRONOMÍA"]
[null,"CAT7326201","CARPINTERÍA",null,"CTE0126535","HOSTELERÍA Y TURISMO"]
[null,"CAT7326337","CARPINTERÍA BÁSICA",null,"CTE7231434","INDUSTRIA DEL CALZADO"]
[null,"CAT7326236","CARPINTERÍA EN MADERA",null,"CTE7231435","INDUSTRIA DEL VESTIDO"]
[null,"CAT7326354","CARPINTERÍA INDUSTRIAL",null,"CTE9999023","INDUSTRIAS DIVERSAS"]
[null,"CAT7326428","CARPINTERÍA MANTENIMIENTO BÁSICO DE CASAS Y EDIFICIOS",null,"CTE7211404","INDUSTRIAS LÁCTEAS"]
[null,"CAT7326289","CARPINTERÍA MELAMINA",null,"CTE9999141","INSTALACIÓN DE RED EXTERNA DE GAS NATURAL"]
[null,"CAT7320023","CARPINTERÍA METAL Y MADERA",null,"CTE9999118","INSTALACIÓN Y CONFIGURACIÓN DE CÁ\u0081MARAS DE VIDEOVIGILANCIA"]
[null,"CAT7136363","CARPINTERÍA METÁLICA",null,"CTE7116510","INSTALACIONES ELÉCTRICAS"]
[null,"CAT7326335","CARPINTERÍA Y EBANISTERÍA",null,"CTE9999138","INSTALACIONES ELÉCTRICAS EMPOTRADAS EN UNA VIVIENDA"]
[null,"CAT2136434","CERÁMICA",null,"CTE9999016","INSTALACIONES ELECTRICAS INTERNAS EN BAJA TENSIÓN"]
[null,"CAT2146342","CERÁMICA EN ARCILLA",null,"CTE7111411","INSTALACIONES ELECTROTÉCNICAS"]
[null,"CAT0126203","COCINA",null,"CTE9999014","INSTALACIONES ELETRICAS EN EDIFICACIONES"]
[null,"CAT0126379","COCINA (ALTA COCINA)",null,"CTE9999057","INSTRUMENTOS DE VIENTO: METAL - MADERA(BANDA)"]
[null,"CAT0126475","COCINA BÁSICA",null,"CTE9999039","JARDINERÍ\u008dA Y HORTICULTURA"]
[null,"CAT0126389","COCINA NACIONAL",null,"CTE2141368","JOYERÍA"]
[null,"CAT0126235","COCINA Y REPOSTERÍA",null,"CTE4131393","LOGÍSTICA Y ALMACENES"]
[null,"CAT9999058","COMIDAS Y POSTRES CREATIVOS",null,"CTE9999013","MANICURE - PEDICURE"]
[null,"CAT6116194","COMPUTACIÓN",null,"CTE9999114","MANTENIMIENTO BÁSICO DE ALBAÑILERÍA"]
[null,"CAT6116286","COMPUTACIÓN BÁSICA",null,"CTE7321446","MANTENIMIENTO BÁSICO DE CASA Y EDIFICIOS"]
[null,"CAT6116187","COMPUTACIÓN E INFORMÁTICA",null,"CTE6121398","MANTENIMIENTO DE EQUIPO DE CÓMPUTO"]
[null,"CAT9999017","COMPUTACIÓN ELEMENTAL",null,"CTE9999125","MANTENIMIENTO DE EQUIPO PESADO"]
[null,"CAT9999103","COMPUTACIÓN-DIGITACIÓN",null,"CTE9999046","MANTENIMIENTO DE INSTALACIONES EMPOTRADAS"]
[null,"CAT3226538","COMUNICACIÓN IMAGEN Y SONIDO",null,"CTE9999045","MANTENIMIENTO DE INSTALACIONES VISIBLES"]
[null,"CAT9999143","CONCENTRACION DE MINERALES POR SEPARACION FISICA",null,"CTE9999036","MANTENIMIENTO DE SISTEMAS ELÉCTRICOS"]
[null,"CAT0410013","CONDUCCIÓN DE VEHÍCULOS MOTORIZADOS Y MECÁNICA AUTOMOTRIZ",null,"CTE9999068","MANTENIMIENTO DE SISTEMAS ELÉCTRICOS EN EDIFICACIONES"]
[null,"CAT0410023","CONDUCCIÓN DE VEHÍCULOS Y ELECTRICIDAD BÁSICA",null,"CTE9999009","MANTENIMIENTO DE SISTEMAS ELECTRÓNICOS"]
[null,"CAT9999067","CONFECCION DE ARTICULOS DE CUERO Y MARROQUERIA",null,"CTE9999062","MANTENIMIENTO INDUSTRIAL"]
[null,"CAT9999120","CONFECCION DE ARTICULOS DE CUERO Y PIEL",null,"CTE9999047","MANUALIDADES VARIADAS"]
[null,"CAT7236321","CONFECCIÓN DE ARTÍCULOS TEXTILES",null,"CTE9999019","MATRICERIA"]
[null,"CAT9999119","CONFECCIÓN DE CALZADO",null,"CTE9999020","MATRICERIA AVANZADA"]
[null,"CAT7236469","CONFECCIÓN DE CALZADO Y ARTÍCULOS DE CUERO",null,"CTE7131420","MECÁNICA AUTOMOTRIZ"]
[null,"CAT7236451","CONFECCIÓN DE CALZADOS",null,"CTE9999106","MECÁNICA DE EQUIPO PESADO"]
[null,"CAT7236441","CONFECCIÓN DE JOYERIA",null,"CTE9999080","MECÁNICA DE MOTORES Y VEHÍCULOS AFINES"]
[null,"CAT9999041","CONFECCIÓN DE PRENDAS DE DAMAS",null,"CTE9999065","MECANICA DE PLANTA"]
[null,"CAT7236347","CONFECCIÓN DE PRENDAS DEPORTIVAS",null,"CTE7136357","MECÁNICA EN SOLDADURA"]
[null,"CAT7236338","CONFECCIÓN DE PRENDAS PARA NIÑOS",null,"CTE7136518","MECÁNICA Y MOTORES"]
[null,"CAT7236258","CONFECCIÓN EN CUERO Y CALZADO",null,"CTE9999134","MODULO ASISTENCIA EN PANADERÍ\u008dA Y PASTELERÍ\u008dA"]
[null,"CAT7236188","CONFECCIÓN INDUSTRIAL",null,"CTE9999110","MONITOREO Y ACCIONES DE M,ANTENIMIENTO DE CENTRO DE COMPUTO"]
[null,"CAT9999070","CONFECCIÓN INDUSTRIAL TEJIDO A TELAR",null,"CTE9999055","MUSICA: CANTO"]
[null,"CAT7236186","CONFECCIÓN TEXTIL",null,"CTE9999056","MUSICA: ÓRGANO ELECTRÓNICO"]
[null,"CAT7236449","CONFECCIONES",null,"CTE9999054","MUSICA: VIOLÍN"]
[null,"CAT9999087","CONSEJERÍA BÍBLICA",null,"CTE9999101","OBTENCIÓN DE COMPOST Y HUMUS DE LOMBRIZ"]
[null,"CAT9999084","CONSEJERÍA FAMILIAR",null,"CTE9999040","ONDULACIÓN PERMANENTE"]
[null,"CAT9999088","CONSEJERÍA MINISTERIAL",null,"CTE6111399","OPERACIÓN DE COMPUTADORAS"]
[null,"CAT9999089","CONSEJERÍA TEOLÓGICA",null,"CTE9999115","OPERACIÓN DE EQUIPOS PESADOS"]
[null,"CAT7216417","CONSERVACIÓN DE CARNES PRODUCTOS HIDROBIOLÓGICOS Y VEGETALES",null,"CTE9999082","OPERACIÓN DE MAQUINARIA PESADA Y TRANSPORTE"]
[null,"CAT7210023","CONSERVACIÓN Y SEMICONSERVACIÓN DE PESCADOS Y MARISCOS",null,"CTE9999076","OPERACIÓN DE PROCESOS DE LECHE"]
[null,"CAT7326245","CONSTRUCCIÓN",null,"CTE9999135","OPERACIÓN Y MANTENIMIENTO DE EQUIPO PESADO"]
[null,"CAT7326448","CONSTRUCCIÓN (CARPINTERIA EN MADERA)",null,"CTE9999137","OPERACIONES BÁ\u0081SICAS DE INSTALACIONES ELÉCTRICAS"]
[null,"CAT9999061","CONSTRUCCIÓN DE MUEBLES DE BAÑO EN MELAMINE",null,"CTE9999139","OPERACIONES CONSTRUCTIVAS EN OBRAS CIVILES"]
[null,"CAT9999060","CONSTRUCCIÓN DE MUEBLES DE SALA EN MELAMINE",null,"CTE9999051","OPERACIONES CONTABLES Y FINANZAS"]
[null,"CAT7136309","CONSTRUCCION METÁLICAS",null,"CTE9999078","OPERADOR DE CENTROS DE CÓMPUTO Y CABINAS DE INTERNET"]
[null,"CAT7326232","CONSTRUCCIONES CARPINTERÍA",null,"CTE9999124","OPERADOR DE EQUIPOS PESADOS"]
[null,"CAT7136200","CONSTRUCCIONES METÁLICAS",null,"CTE9999127","OPERADOR DE MAQUINARIA PESADA"]
[null,"CAT7136423","CONSTRUCCIONES METÁLICAS Y SOLDADURA BÁSICA",null,"CTE9999074","OPERADOR DE OFIMÁTICA"]
[null,"CAT4116253","CONTABILIDAD",null,"CTE7236512","OPERATIVIDAD DE MÁQUINAS DE CONFECCIÓN"]
[null,"CAT9999005","CONTROL EN PROCESOS DE ALMACENAMIENTO",null,"CTE4170995","OTROS PROGRAMAS EN ADMINISTRACIÓN PÚBLICA"]
[null,"CAT2146254","CORIOPLASTÍA",null,"CTE4190995","OTROS PROGRAMAS EN ADMINISTRACIÓN Y COMERCIO"]
[null,"CAT0116322","CORTE DE CABELLO",null,"CTE3150995","OTROS PROGRAMAS EN ANTROPOLOGÍA"]
[null,"CAT7236312","CORTE Y CONFECCIÓN",null,"CTE7310995","OTROS PROGRAMAS EN ARQUITECTURA Y URBANISMO"]
[null,"CAT7236328","CORTE Y ENSAMBLAJE",null,"CTE2130995","OTROS PROGRAMAS EN ARTE"]
[null,"CAT9999011","CORTE, APARADO Y ARMADO DE CALZADO",null,"CTE2140995","OTROS PROGRAMAS EN ARTESANÍA Y MANUALIDADES"]
[null,"CAT0116212","COSMETOLOGÍA",null,"CTE9210995","OTROS PROGRAMAS EN ASISTENCIA A ADULTOS MAYORES Y DISCAPACITADOS"]
[null,"CAT0116287","COSMETOLOGÍA BÁSICA",null,"CTE9220995","OTROS PROGRAMAS EN ASISTENCIA A LA INFANCIA Y SERVICIOS PARA JÓVENES"]
[null,"CAT0116237","COSMETOLOGÍA PELUQUERÍA BÁSICA",null,"CTE3230995","OTROS PROGRAMAS EN BIBLIOTECOLOGÍA Y ARCHIVO"]
[null,"CAT0116257","COSMETOLOGÍA Y PELUQUERÍA",null,"CTE5110995","OTROS PROGRAMAS EN BIOLOGÍA"]
[null,"CAT2146223","COSTURA Y ACABADOS",null,"CTE6110995","OTROS PROGRAMAS EN CIENCIAS DE LA COMPUTACIÓN"]
[null,"CAT8110043","CRIANZA DE ANIMALES MENORES",null,"CTE3220995","OTROS PROGRAMAS EN CIENCIAS DE LA COMUNICACIÓN"]
[null,"CAT7236229","CUERO Y CALZADO",null,"CTE5320995","OTROS PROGRAMAS EN CIENCIAS DE LA TIERRA"]
[null,"CAT9226296","CUIDADO DE NIÑOS",null,"CTE3120995","OTROS PROGRAMAS EN CIENCIAS POLÍTICAS"]
[null,"CAT9226281","CUIDADO DE NIÑOS Y ANCIANOS",null,"CTE4180995","OTROS PROGRAMAS EN COMPETENCIAS LABORALES"]
[null,"CAT9999108","CUIDADO, TRATAMIENTOS, COLORACIÓN Y TRANSFORMACIÓN DE LA HEBRA CAPILAR",null,"CTE7320995","OTROS PROGRAMAS EN CONSTRUCCIÓN E INGENIERÍA CIVIL"]
[null,"CAT9999113","CUIDADOS DEL ADULTO MAYOR",null,"CTE4110995","OTROS PROGRAMAS EN CONTABILIDAD E IMPUESTOS"]
[null,"CAT9999038","CULTIVO DE A\u0081RBOLES FRUTALES Y BERRIES",null,"CTE0130995","OTROS PROGRAMAS EN DEPORTE"]
[null,"CAT8126476","CULTIVO DE FRUTALES",null,"CTE4220995","OTROS PROGRAMAS EN DERECHO PRIVADO"]
[null,"CAT8126477","CULTIVO DE HORTALIZAS",null,"CTE4210995","OTROS PROGRAMAS EN DERECHO PÚBLICO"]
[null,"CAT8116408","CULTIVOS HIDROPÓNICOS",null,"CTE2120995","OTROS PROGRAMAS EN DISEÑO INDUSTRIAL, DE MODAS E INTERIORES"]
[null,"CAT9999132","CURSO CERTIFICABLE ASISTENTE EN ELABORACIÓN DE PÁ\u0081GINAS SOCIALES E INTERNET",null,"CTE5210995","OTROS PROGRAMAS EN ECOLOGÍA Y MEDIO AMBIENTE"]
[null,"CAT9999131","CURSO CERTIFICABLE DISEÑO GRÁFICO",null,"CTE3110995","OTROS PROGRAMAS EN ECONOMÍA"]
[null,"CAT9999133","CURSO CERTIFICABLE ELABORACIÓN DE BOCADITOS",null,"CTE1990995","OTROS PROGRAMAS EN EDUCACIÓN"]
[null,"CAT9999130","CURSO CERTIFICABLE SISTEMAS OPERATIVOS",null,"CTE1610995","OTROS PROGRAMAS EN EDUCACIÓN ARTÍSTICA"]
[null,"CAT9999094","CURSOS DE EXTENSIÓN EDUCATIVA",null,"CTE1410995","OTROS PROGRAMAS EN EDUCACIÓN ESPECIAL"]
[null,"CAT8111433","CURTIEMBRE Y PELETERÍA",null,"CTE1510995","OTROS PROGRAMAS EN EDUCACIÓN FÍSICA"]
[null,"CAT2156446","DANZA",null,"CTE1110995","OTROS PROGRAMAS EN EDUCACIÓN INICIAL"]
[null,"CAT2146238","DECORACIÓN DE EVENTOS",null,"CTE0310995","OTROS PROGRAMAS EN EDUCACIÓN MILITAR Y DE DEFENSA"]
[null,"CAT9999021","DECORACIÓN DE EVENTOS ESPECIALES",null,"CTE1120995","OTROS PROGRAMAS EN EDUCACIÓN PRIMARIA"]
[null,"CAT2146470","DECORACIÓN PARA FIESTAS SOCIALES",null,"CTE1210995","OTROS PROGRAMAS EN EDUCACIÓN SECUNDARIA"]
[null,"CAT2136369","DIBUJO Y PINTURA",null,"CTE1310995","OTROS PROGRAMAS EN EDUCACIÓN SUPERIOR Y TECNOLÓGICA"]
[null,"CAT6116239","DIGITACIÓN",null,"CTE7110995","OTROS PROGRAMAS EN ELECTRICIDAD Y ENERGÍA"]
[null,"CAT6116474","DIGITACIÓN DE COMPUTADORAS",null,"CTE7120995","OTROS PROGRAMAS EN ELECTRÓNICA Y AUTOMATIZACIÓN"]
[null,"CAT6116266","DIGITADOR EN OFIMÁTICA",null,"CTE9130995","OTROS PROGRAMAS EN ENFERMERÍA"]
[null,"CAT2140093","DISEÑO DE CERÁMICA UTILITARIA",null,"CTE5420995","OTROS PROGRAMAS EN ESTADÍSTICA"]
[null,"CAT7326182","DISEÑO DE ESPACIOS INTERIORES",null,"CTE9170995","OTROS PROGRAMAS EN FARMACIA"]
[null,"CAT9999081","DISEÑO GRÁFICO",null,"CTE2230995","OTROS PROGRAMAS EN FILOSOFÍA Y ETICA"]
[null,"CAT9999095","DISEÑO GRÁFICO PUBLICITARIO DIGITAL",null,"CTE5330995","OTROS PROGRAMAS EN FÍSICA"]
[null,"CAT9999063","DISEÑO TÉCNICO",null,"CTE4120995","OTROS PROGRAMAS EN GESTIÓN FINANCIERA, ADMINISTRACIÓN BANCARIA Y SEGUROS"]
[null,"CAT7326437","EBANISTERÍA",null,"CTE4130995","OTROS PROGRAMAS EN GESTIÓN Y ADMINISTRACIÓN"]
[null,"CAT7320043","EBANISTERÍA Y TALLADOS",null,"CTE1910995","OTROS PROGRAMAS EN GESTIÓN Y CALIDAD EDUCATIVA"]
[null,"CAT9999044","ELABORACIÓN DE BOCADITOS PARA BUFFET",null,"CTE2220995","OTROS PROGRAMAS EN HISTORIA Y ARQUEOLOGÍA"]
[null,"CAT9999079","ELABORACION DE PRENDAS DE VESTIR EN TEJIDO ARTESANAL Y MAQUINA TEJEDORA MANUAL",null,"CTE8120995","OTROS PROGRAMAS EN HORTICULTURA"]
[null,"CAT9999026","ELABORACIÓN DE PRODUCTOS ARTESANALES",null,"CTE0126502","OTROS PROGRAMAS EN HOSTELERÍA , RESTAURANTES Y GASTRONOMÍA"]
[null,"CAT7216323","ELABORACIÓN DE PRODUCTOS DE PASTELERÍA",null,"CTE2310995","OTROS PROGRAMAS EN IDIOMAS"]
[null,"CAT9999043","ELABORACIÓN DE TORTAS COMERCIALES",null,"CTE7220995","OTROS PROGRAMAS EN INDUSTRIA Y PRODUCTOS TRANSFORMADOS (EXCEPTO ALIMENTOS, TEXTIL, AGRO, MINAS Y PETRÓLEO)"]
[null,"CAT7116206","ELECTRICIDAD",null,"CTE7210995","OTROS PROGRAMAS EN INDUSTRIAS ALIMENTARIAS"]
[null,"CAT7130033","ELECTRICIDAD AUTOMOTRIZ",null,"CTE7330995","OTROS PROGRAMAS EN INGENIERÍA SANITARIA"]
[null,"CAT7116409","ELECTRICIDAD BÁSICA",null,"CTE5430995","OTROS PROGRAMAS EN INVESTIGACIÓN OPERATIVA"]
[null,"CAT7116404","ELECTRICIDAD DOMICILIARIA",null,"CTE2320995","OTROS PROGRAMAS EN LINGÜÍSTICA Y LITERATURA"]
[null,"CAT7116355","ELECTRICIDAD ELECTRÓNICA INDUSTRIAL",null,"CTE4140995","OTROS PROGRAMAS EN MARKETING Y PUBLICIDAD"]
[null,"CAT7116259","ELECTRICIDAD Y ELECTRÓNICA",null,"CTE5410995","OTROS PROGRAMAS EN MATEMÁTICA"]
[null,"CAT7126207","ELECTRÓNICA",null,"CTE7130995","OTROS PROGRAMAS EN MECÁNICA Y METALÚRGICA"]
[null,"CAT7126415","ELECTRÓNICA BÁSICA",null,"CTE9120995","OTROS PROGRAMAS EN MEDICINA"]
[null,"CAT9999018","ELECTRONICA DE CONSUMO",null,"CTE7240995","OTROS PROGRAMAS EN MINERÍA Y EXTRACCIÓN"]
[null,"CAT2126367","ENCUADERNACIÓN",null,"CTE2150995","OTROS PROGRAMAS EN MÚSICA Y ARTES ESCÉNICAS"]
[null,"CAT6120013","ENSAMBLAJE Y MANTENIMIENTO DE COMPUTADORAS",null,"CTE4160995","OTROS PROGRAMAS EN NEGOCIOS INTERNACIONALES"]
[null,"CAT7120033","EQUIPOS ELECTRÓNICOS DE AUDIO",null,"CTE9180995","OTROS PROGRAMAS EN NUTRICIÓN"]
[null,"CAT7120043","EQUIPOS ELECTRÓNICOS DE CONSUMO",null,"CTE9140995","OTROS PROGRAMAS EN OBSTETRICIA"]
[null,"CAT9999107","ESCULTURA DE CORTE DE CABELLO, PEINADO Y EXTENSIONES",null,"CTE9110995","OTROS PROGRAMAS EN ODONTOLOGÍA"]
[null,"CAT7236429","ESTAMPADO",null,"CTE0116501","OTROS PROGRAMAS EN PELUQUERÍA Y TRATAMIENTOS DE BELLEZA"]
[null,"CAT7230083","ESTAMPADO COMPUTARIZADO Y MANUAL",null,"CTE3210995","OTROS PROGRAMAS EN PERIODISMO Y LOCUCIÓN"]
[null,"CAT7236413","ESTAMPADO DE PRENDAS DE VESTIR",null,"CTE8310995","OTROS PROGRAMAS EN PESCA"]
[null,"CAT7236288","ESTAMPADO TEXTIL",null,"CTE8110995","OTROS PROGRAMAS EN PRODUCCIÓN AGRÍCOLA Y GANADERA"]
[null,"CAT0116246","ESTÉTICA PERSONAL",null,"CTE7230995","OTROS PROGRAMAS EN PRODUCCIÓN TEXTIL Y CONFECCIONES"]
[null,"CAT9999002","ESTILISMO",null,"CTE0320995","OTROS PROGRAMAS EN PROTECCIÓN DE LAS PERSONAS Y DE PROPIEDAD"]
[null,"CAT9999083","ESTUDIOS BÍBLICOS",null,"CTE3130995","OTROS PROGRAMAS EN PSICOLOGÍA"]
[null,"CAT9999091","ESTUDIOS BÍBLICOS MINISTERIALES",null,"CTE5310995","OTROS PROGRAMAS EN QUÍMICA"]
[null,"CAT9999090","ESTUDIOS BÍBLICOS TEOLÓGICOS",null,"CTE5220995","OTROS PROGRAMAS EN RECURSOS HÍDRICOS"]
[null,"CAT9999085","ESTUDIOS MINISTERIALES",null,"CTE2210995","OTROS PROGRAMAS EN RELIGIÓN Y TEOLOGÍA"]
[null,"CAT9999086","ESTUDIOS TEOLÓGICOS",null,"CTE9190995","OTROS PROGRAMAS EN SALUD"]
[null,"CAT9999092","ESTUDIOS TEOLÓGICOS MINISTERIALES",null,"CTE0220995","OTROS PROGRAMAS EN SALUD Y PROTECCIÓN LABORAL"]
[null,"CAT8210013","EXTRACCIÓN Y TRANSFORMACIÓN PRIMARIA DE RECURSOS MADERABLES EN SELVA",null,"CTE0210995","OTROS PROGRAMAS EN SANEAMIENTO DE LA COMUNIDAD"]
[null,"CAT2146642","FABRICACIÓN ARTESANAL DE PRODUCTOS DE MADERA",null,"CTE4150995","OTROS PROGRAMAS EN SECRETARIADO Y TRABAJO DE OFICINA"]
[null,"CAT7236388","FABRICACIÓN DE PRENDAS DE VESTIR",null,"CTE0410995","OTROS PROGRAMAS EN SERVICIOS DE TRANSPORTE"]
[null,"CAT9999015","FABRICACION DE PRODUCTOS DERIVADOS DE MADERA",null,"CTE8210995","OTROS PROGRAMAS EN SILVICULTURA"]
[null,"CAT9999073","FABRICACIÓN DE TEJIDURIA",null,"CTE6126305","OTROS PROGRAMAS EN SISTEMAS Y COMPUTO"]
[null,"CAT9999075","FABRICACIÓN TEXTIL DE PRENDAS DE VESTIR, ACCESORIOS Y ARTICULOS DECORATIVOS TEJIDOS A MANO",null,"CTE3140995","OTROS PROGRAMAS EN SOCIOLOGÍA Y ESTUDIOS CULTURALES"]
[null,"CAT8116250","GANADERÍA Y TRANSFORMACIONES LÁCTEAS",null,"CTE2110995","OTROS PROGRAMAS EN TÉCNICAS AUDIOVISUALES Y DE PRODUCCIÓN PARA MEDIOS DE COMUNICACIÓN"]
[null,"CAT0126530","GASTRONOMÍA",null,"CTE9150995","OTROS PROGRAMAS EN TECNOLOGÍA DE DIAGNÓSTICO Y TRATAMIENTO MÉDICO"]
[null,"CAT2156447","GUITARRA Y QUENA",null,"CTE6130995","OTROS PROGRAMAS EN TELECOMUNICACIONES"]
[null,"CAT7230113","HILANDERÍA INDUSTRIAL",null,"CTE9160995","OTROS PROGRAMAS EN TERAPIA Y REHABILITACIÓN"]
[null,"CAT7236438","HILANDERÍA Y TEJIDOS EN TELAR ARTESANAL",null,"CTE9230995","OTROS PROGRAMAS EN TRABAJO SOCIAL"]
[null,"CAT0126419","HOSTELERÍA",null,"CTE7140995","OTROS PROGRAMAS EN VEHÍCULOS, BARCOS Y AERONAVES MOTORIZADAS"]
[null,"CAT0126244","HOSTELERÍA Y TURISMO",null,"CTE8410995","OTROS PROGRAMAS EN VETERINARIA"]
[null,"CAT0126443","HOSTELERÍA Y TURÍSMO ASISTENTE EN COCINA",null,"CTE0140995","OTROS PROGRAMAS EN VIAJES, TURISMO Y ACTIVIDADES RECREATIVAS"]
[null,"CAT7216247","HOSTELERÍA Y TURÍSMO ASISTENTE EN PANADERÍA Y PASTELERÍA",null,"CTE7216214","PANADERÍA Y PASTELERÍA"]
[null,"CAT0126537","HOTELERIA Y TURISMO",null,"CTE9999140","PANADERÍA Y PASTELERÍA ARTESANAL"]
[null,"CAT2316382","IDIOMA",null,"CTE9999037","PANIFICACIÓN"]
[null,"CAT2316211","IDIOMA INGLÉS",null,"CTE9999004","PANIFICACIÓN INDUSTRIAL"]
[null,"CAT7236529","INDUSTRIA CUERO Y CALZADO",null,"CTE7211385","PASTELERÍA Y PANADERÍA"]
[null,"CAT7126313","INDUSTRIA CUERO Y ELECTRÓNICA",null,"CTE7236515","PATRONAJE"]
[null,"CAT7230123","INDUSTRIA DEL CALZADO",null,"CTE9999008","PATRONAJE"]
[null,"CAT7236297","INDUSTRIA DEL VESTIDO",null,"CTE9999048","PEINADOS"]
[null,"CAT7236430","INDUSTRIA TEXTIL",null,"CTE0111459","PELUQUERÍA"]
[null,"CAT7216248","INDUSTRIAS ALIMENTARIAS",null,"CTE9999025","PIROGRABADO"]
[null,"CAT9999023","INDUSTRIAS DIVERSAS",null,"CTE9999097","PLANCHADO Y PINTURA DE VEHÍCULOS"]
[null,"CAT7216465","INDUSTRIAS LÁCTEAS",null,"CTE9999029","PLATAFORMAS Y SERVICIOS DE TECNOLOGÍAS DE LA INFORMACIÓN"]
[null,"CAT9999141","INSTALACIÓN DE RED EXTERNA DE GAS NATURAL",null,"CTE9999001","PLATAFORMAS Y SERVICIOS TECNOLÓGICOS DE LA INFORMACIÓN"]
[null,"CAT9999118","INSTALACIÓN Y CONFIGURACIÓN DE CÁ\u0081MARAS DE VIDEOVIGILANCIA",null,"CTE9999147","PODOLOGÍA"]
[null,"CAT6120023","INSTALACIÓN Y MANTENIMIENTO DE COMPUTADORAS",null,"CTE9999050","PRODUCCIÓN AGROPECUARIA"]
[null,"CAT7116348","INSTALACIONES DE TABLEROS ELÉCTRICOS DE PROTECCIÓN",null,"CTE9999028","PRODUCCIÓN DE TEJIDOS EN TELAR"]
[null,"CAT7116317","INSTALACIONES ELÉCTRICAS",null,"CTE9999027","PRODUCCIÓN EN TEJEDURÍA"]
[null,"CAT7116339","INSTALACIONES ELÉCTRICAS DOMICILIARIAS",null,"CTE9999007","PROGRAMACIÓN DE SISTEMAS DE INFORMACIÓN"]
[null,"CAT9999138","INSTALACIONES ELÉCTRICAS EMPOTRADAS EN UNA VIVIENDA",null,"CTE9999006","PROGRAMACION Y OPERACION DE MAQUINAS CNC."]
[null,"CAT9999016","INSTALACIONES ELECTRICAS INTERNAS EN BAJA TENSIÓN",null,"CTE9999042","PROGRAMAS DE OFICINA"]
[null,"CAT7116240","INSTALACIONES ELÉCTRICAS Y ELECTRÓNICAS",null,"CTE9999144","QUECHUA"]
[null,"CAT7116361","INSTALACIONES ELECTROTÉCNICAS",null,"CTE9999052","REDACCIÓN Y TRANSMISIÓN DE DOCUMENTOS"]
[null,"CAT9999014","INSTALACIONES ELETRICAS EN EDIFICACIONES",null,"CTE9999035","REDES Y COMUNICACIONES"]
[null,"CAT7110063","INSTALACIONES INTERNAS Y ARTEFACTOS ELECTRODOMÉSTICOS",null,"CTE9999069","REPARACIÓN DE ORDENADORES"]
[null,"CAT9999057","INSTRUMENTOS DE VIENTO: METAL - MADERA(BANDA)",null,"CTE9999099","RETABLO AYACUCHANO"]
[null,"CAT9999039","JARDINERÍ\u008dA Y HORTICULTURA",null,"CTE7231436","SASTRERÍA"]
[null,"CAT8126390","JARDINERÍA",null,"CTE9999104","SERVICIOS DE RESTAURANT Y BAR"]
[null,"CAT2146199","JOYERÍA",null,"CTE9999033","SERVICIOS SOCIALES Y ASISTENCIALES"]
[null,"CAT2146407","LABORES Y MANUALIDADES",null,"CTE9999030","SOLDADURA"]
[null,"CAT3210013","LOCUCIÓN Y COMUNICACIÓN DE RADIO Y TV",null,"CTE9999031","SOLDADURA EN ESTRUCTURAS METÁLICAS"]
[null,"CAT4136227","LOGÍSTICA Y ALMACENES",null,"CTE9999128","SOLDADURA UNIVERSAL"]
[null,"CAT8110073","MANEJO DE GANADO VACUNO",null,"CTE9999123","SOLDADURA Y CONSTRUCCIONES METÁLICAS"]
[null,"CAT8126532","MANEJO DE INSTALACIONES HORTOFRUTÍCOLAS",null,"CTE9999077","SOPORTE TÉCNICO EN COMPUTADORAS"]
[null,"CAT8110093","MANEJO DE MAQUINARIAS Y EQUIPOS AGRÍCOLAS",null,"CTE9999145","SSOMA"]
[null,"CAT8116478","MANEJO POST COSECHA",null,"CTE9999100","TALLADO EN PIEDRA HUAMANGA"]
[null,"CAT0416463","MANEJO VEHÍCULAR",null,"CTE9999022","TÉCNICAS CULINARIAS"]
[null,"CAT8116487","MANEJO Y CRIANZA DE AVES",null,"CTE9999053","TECNICO EN CONTROL DE PROCESOS DE ALMACEN"]
[null,"CAT9999114","MANTENIMIENTO BÁSICO DE ALBAÑILERÍA",null,"CTE9999024","TÉCNOLOGIAS DE LA INFORMACIÓN Y COMUNICACIONES - TIC'S"]
[null,"CAT7326242","MANTENIMIENTO BÁSICO DE CASA Y EDIFICIOS",null,"CTE7231437","TEJIDO A MANO"]
[null,"CAT7116324","MANTENIMIENTO BÁSICO DE INSTALACIONES ELÉCTRICAS",null,"CTE7231438","TEJIDO A MANO Y A MÁQUINA DE TEJER"]
[null,"CAT7326402","MANTENIMIENTO BÁSICO EN CARPINTERÍA",null,"CTE7231439","TEJIDO A MÁQUINA"]
[null,"CAT6126276","MANTENIMIENTO DE EQUIPO DE CÓMPUTO",null,"CTE9999136","TEJIDO A PUNTO A MANO"]
[null,"CAT9999125","MANTENIMIENTO DE EQUIPO PESADO",null,"CTE9999012","TENENCIAS Y COLORIMETRIA"]
[null,"CAT6120043","MANTENIMIENTO DE EQUIPOS DE CÓMPUTO Y ADMINISTRACIÓN DE REDES",null,"CTE7231440","TINTORERÍA Y ACABADO TEXTIL"]
[null,"CAT9999046","MANTENIMIENTO DE INSTALACIONES EMPOTRADAS",null,"CTE7321444","TOPOGRAFÍA"]
[null,"CAT9999045","MANTENIMIENTO DE INSTALACIONES VISIBLES",null,"CTE9999122","TOPOGRAFÍA Y GEODESIA"]
[null,"CAT5316458","MANTENIMIENTO DE LABORATORIO QUIMÍCO",null,"CTE9999072","TRANSPORTE TERRESTRE Y OPERACIÓN DE EQUIPOS PESADOS"]
[null,"CAT7116310","MANTENIMIENTO DE SISTEMAS ELÉCTRICOS",null,"CTE9999105","TRANSPORTE Y OPERACIÓN DE EQUIPO PESADO"]
[null,"CAT9999068","MANTENIMIENTO DE SISTEMAS ELÉCTRICOS EN EDIFICACIONES",null,"CTE9999049","TRATAMIENTO Y BOTOX CAPILAR"]
[null,"CAT9999009","MANTENIMIENTO DE SISTEMAS ELECTRÓNICOS",null,"CTE9999093","VENTAS"]
[null,"CAT7136277","MANTENIMIENTO DE VEHÍCULO MOTORIZADOS"]
[null,"CAT7130043","MANTENIMIENTO DE VEHÍCULOS"]
[null,"CAT9999062","MANTENIMIENTO INDUSTRIAL"]
[null,"CAT2146215","MANUALIDADES"]
[null,"CAT9999047","MANUALIDADES VARIADAS"]
[null,"CAT9196499","MASOTERAPIA"]
[null,"CAT7210033","MATARIFE Y PREPARACIONES CÁRNICAS BÁSICAS"]
[null,"CAT9999019","MATRICERIA"]
[null,"CAT9999020","MATRICERIA AVANZADA"]
[null,"CAT7136295","MECÁNCIA DE MOTOS Y VEHÍCULOS AFINES"]
[null,"CAT7136222","MECÁNICA AUTOMOTRIZ"]
[null,"CAT7136228","MECÁNICA AUTOMOTRIZ Y MOTOS"]
[null,"CAT7130073","MECÁNICA DE BANCO"]
[null,"CAT9999106","MECÁNICA DE EQUIPO PESADO"]
[null,"CAT7136381","MECÁNICA DE METALES"]
[null,"CAT7136233","MECÁNICA DE MOTOCICLETAS"]
[null,"CAT7136416","MECÁNICA DE MOTORES"]
[null,"CAT7136243","MECÁNICA DE MOTORES MENORES"]
[null,"CAT9999080","MECÁNICA DE MOTORES Y VEHÍCULOS AFINES"]
[null,"CAT7136516","MECÁNICA DE MOTORES Y VEHÍCULOS BÁSICA"]
[null,"CAT7136380","MECÁNICA DE MOTOS"]
[null,"CAT7136508","MECÁNICA DE MOTOS Y VEHÍCULOS AFINES"]
[null,"CAT9999065","MECANICA DE PLANTA"]
[null,"CAT7136221","MECÁNICA EN AUTOMOTRIZ Y MOTOS"]
[null,"CAT7136641","MECÁNICA EN SOLDADURA"]
[null,"CAT7136314","MECÁNICA Y METALES"]
[null,"CAT7136216","MECÁNICA Y METALES -B"]
[null,"CAT7136452","MECÁNICA Y MOTORES"]
[null,"CAT7136410","MECÁNICO TORNERO"]
[null,"CAT9999134","MODULO ASISTENCIA EN PANADERÍ\u008dA Y PASTELERÍ\u008dA"]
[null,"CAT9999110","MONITOREO Y ACCIONES DE M,ANTENIMIENTO DE CENTRO DE COMPUTO"]
[null,"CAT2156336","MÚSICA"]
[null,"CAT9999055","MUSICA: CANTO"]
[null,"CAT9999056","MUSICA: ÓRGANO ELECTRÓNICO"]
[null,"CAT9999054","MUSICA: VIOLÍN"]
[null,"CAT9999101","OBTENCIÓN DE COMPOST Y HUMUS DE LOMBRIZ"]
[null,"CAT6116370","OFIMÁTICA"]
[null,"CAT9999040","ONDULACIÓN PERMANENTE"]
[null,"CAT6126444","OPERACIÓN DE CENTROS DE CÓMPUTO"]
[null,"CAT6116213","OPERACIÓN DE COMPUTADORAS"]
[null,"CAT9999115","OPERACIÓN DE EQUIPOS PESADOS"]
[null,"CAT9999082","OPERACIÓN DE MAQUINARIA PESADA Y TRANSPORTE"]
[null,"CAT9999076","OPERACIÓN DE PROCESOS DE LECHE"]
[null,"CAT6116261","OPERACIÓN DE PROGRAMAS DE COMPUTACIÓN"]
[null,"CAT6116536","OPERACIÓN DE PROGRAMAS DE COMPUTACIÓN E INFORMÁTICA"]
[null,"CAT9999135","OPERACIÓN Y MANTENIMIENTO DE EQUIPO PESADO"]
[null,"CAT9999137","OPERACIONES BÁ\u0081SICAS DE INSTALACIONES ELÉCTRICAS"]
[null,"CAT9999139","OPERACIONES CONSTRUCTIVAS EN OBRAS CIVILES"]
[null,"CAT9999051","OPERACIONES CONTABLES Y FINANZAS"]
[null,"CAT4136460","OPERACIONES DE ALMACENAMIENTO"]
[null,"CAT6116234","OPERACIONES DE COMPUTADORAS"]
[null,"CAT0216414","OPERACIONES DE LIMPIEZA DE HABITACIONES Y ESPACIOS PÚBLICOS"]
[null,"CAT9999078","OPERADOR DE CENTROS DE CÓMPUTO Y CABINAS DE INTERNET"]
[null,"CAT0410033","OPERADOR DE EQUIPOS PESADOS"]
[null,"CAT9999127","OPERADOR DE MAQUINARIA PESADA"]
[null,"CAT9999074","OPERADOR DE OFIMÁTICA"]
[null,"CAT6116325","OPERADOR DE PROGRAMAS DE COMPUTACIÓN E INFORMÁTICA"]
[null,"CAT6116326","OPERADOR EN OFIMÁTICA"]
[null,"CAT0416349","OPERATIVIDAD DE MÁQUINA"]
[null,"CAT7236450","OPERATIVIDAD DE MÁQUINAS DE CONFECCIÓN"]
[null,"CAT0146427","ORIENTADOR TURISTICO"]
[null,"CAT4170994","OTROS PROGRAMAS EN ADMINISTRACIÓN PÚBLICA"]
[null,"CAT4196372","OTROS PROGRAMAS EN ADMINISTRACIÓN Y COMERCIO"]
[null,"CAT3150994","OTROS PROGRAMAS EN ANTROPOLOGÍA"]
[null,"CAT7310994","OTROS PROGRAMAS EN ARQUITECTURA Y URBANISMO"]
[null,"CAT2136368","OTROS PROGRAMAS EN ARTE"]
[null,"CAT2146275","OTROS PROGRAMAS EN ARTESANIA Y MANUALIDADES"]
[null,"CAT9210994","OTROS PROGRAMAS EN ASISTENCIA A ADULTOS MAYORES Y DISCAPACITADOS"]
[null,"CAT9220994","OTROS PROGRAMAS EN ASISTENCIA A LA INFANCIA Y SERVICIOS PARA JÓVENES"]
[null,"CAT3230994","OTROS PROGRAMAS EN BIBLIOTECOLOGÍA Y ARCHIVO"]
[null,"CAT5110994","OTROS PROGRAMAS EN BIOLOGÍA"]
[null,"CAT6116481","OTROS PROGRAMAS EN CIENCIAS DE LA COMPUTACIÓN"]
[null,"CAT3220994","OTROS PROGRAMAS EN CIENCIAS DE LA COMUNICACIÓN"]
[null,"CAT5320994","OTROS PROGRAMAS EN CIENCIAS DE LA TIERRA"]
[null,"CAT3120994","OTROS PROGRAMAS EN CIENCIAS POLÍTICAS"]
[null,"CAT4180994","OTROS PROGRAMAS EN COMPETENCIAS LABORALES"]
[null,"CAT7320994","OTROS PROGRAMAS EN CONSTRUCCIÓN E INGENIERÍA CIVIL"]
[null,"CAT4110994","OTROS PROGRAMAS EN CONTABILIDAD E IMPUESTOS"]
[null,"CAT0130994","OTROS PROGRAMAS EN DEPORTE"]
[null,"CAT4220994","OTROS PROGRAMAS EN DERECHO PRIVADO"]
[null,"CAT4210994","OTROS PROGRAMAS EN DERECHO PÚBLICO"]
[null,"CAT2120994","OTROS PROGRAMAS EN DISEÑO INDUSTRIAL, DE MODAS E INTERIORES"]
[null,"CAT5210994","OTROS PROGRAMAS EN ECOLOGÍA Y MEDIO AMBIENTE"]
[null,"CAT3110994","OTROS PROGRAMAS EN ECONOMÍA"]
[null,"CAT1990994","OTROS PROGRAMAS EN EDUCACIÓN"]
[null,"CAT1610994","OTROS PROGRAMAS EN EDUCACIÓN ARTÍSTICA"]
[null,"CAT1410994","OTROS PROGRAMAS EN EDUCACIÓN ESPECIAL"]
[null,"CAT1510994","OTROS PROGRAMAS EN EDUCACIÓN FÍSICA"]
[null,"CAT1110994","OTROS PROGRAMAS EN EDUCACIÓN INICIAL"]
[null,"CAT0310994","OTROS PROGRAMAS EN EDUCACIÓN MILITAR Y DE DEFENSA"]
[null,"CAT1120994","OTROS PROGRAMAS EN EDUCACIÓN PRIMARIA"]
[null,"CAT1210994","OTROS PROGRAMAS EN EDUCACIÓN SECUNDARIA"]
[null,"CAT1310994","OTROS PROGRAMAS EN EDUCACIÓN SUPERIOR Y TECNOLÓGICA"]
[null,"CAT7110994","OTROS PROGRAMAS EN ELECTRICIDAD Y ENERGÍA"]
[null,"CAT7120994","OTROS PROGRAMAS EN ELECTRÓNICA Y AUTOMATIZACIÓN"]
[null,"CAT9130994","OTROS PROGRAMAS EN ENFERMERÍA"]
[null,"CAT5420994","OTROS PROGRAMAS EN ESTADÍSTICA"]
[null,"CAT9170994","OTROS PROGRAMAS EN FARMACIA"]
[null,"CAT2230994","OTROS PROGRAMAS EN FILOSOFÍA Y ETICA"]
[null,"CAT5330994","OTROS PROGRAMAS EN FÍSICA"]
[null,"CAT4120994","OTROS PROGRAMAS EN GESTIÓN FINANCIERA, ADMINISTRACIÓN BANCARIA Y SEGUROS"]
[null,"CAT4130994","OTROS PROGRAMAS EN GESTIÓN Y ADMINISTRACIÓN"]
[null,"CAT1910994","OTROS PROGRAMAS EN GESTIÓN Y CALIDAD EDUCATIVA"]
[null,"CAT2220994","OTROS PROGRAMAS EN HISTORIA Y ARQUEOLOGÍA"]
[null,"CAT8120994","OTROS PROGRAMAS EN HORTICULTURA"]
[null,"CAT0126274","OTROS PROGRAMAS EN HOTELERÍA RESTAURANTES Y GASTRONOMÍA"]
[null,"CAT0120994","OTROS PROGRAMAS EN HOTELERÍA, RESTAURANTES Y GASTRONOMÍA"]
[null,"CAT2310994","OTROS PROGRAMAS EN IDIOMAS"]
[null,"CAT7220994","OTROS PROGRAMAS EN INDUSTRIA Y PRODUCTOS TRANSFORMADOS (EXCEPTO ALIMENTOS, TEXTIL, AGRO, MINAS Y PETRÓLEO)"]
[null,"CAT7210994","OTROS PROGRAMAS EN INDUSTRIAS ALIMENTARIAS"]
[null,"CAT7330994","OTROS PROGRAMAS EN INGENIERÍA SANITARIA"]
[null,"CAT5430994","OTROS PROGRAMAS EN INVESTIGACIÓN OPERATIVA"]
[null,"CAT2320994","OTROS PROGRAMAS EN LINGÜÍSTICA Y LITERATURA"]
[null,"CAT4140994","OTROS PROGRAMAS EN MARKETING Y PUBLICIDAD"]
[null,"CAT5410994","OTROS PROGRAMAS EN MATEMÁTICA"]
[null,"CAT7136373","OTROS PROGRAMAS EN MECÁNICA Y METALÚRGICA"]
[null,"CAT9120994","OTROS PROGRAMAS EN MEDICINA"]
[null,"CAT7240994","OTROS PROGRAMAS EN MINERÍA Y EXTRACCIÓN"]
[null,"CAT2150994","OTROS PROGRAMAS EN MÚSICA Y ARTES ESCÉNICAS"]
[null,"CAT4160994","OTROS PROGRAMAS EN NEGOCIOS INTERNACIONALES"]
[null,"CAT9180994","OTROS PROGRAMAS EN NUTRICIÓN"]
[null,"CAT9140994","OTROS PROGRAMAS EN OBSTETRICIA"]
[null,"CAT9110994","OTROS PROGRAMAS EN ODONTOLOGÍA"]
[null,"CAT0116387","OTROS PROGRAMAS EN PELUQUERÍA Y TRATAMIENTOS DE BELLEZA"]
[null,"CAT3210994","OTROS PROGRAMAS EN PERIODISMO Y LOCUCIÓN"]
[null,"CAT8316486","OTROS PROGRAMAS EN PESCA"]
[null,"CAT8110994","OTROS PROGRAMAS EN PRODUCCIÓN AGRÍCOLA Y GANADERA"]
[null,"CAT7236385","OTROS PROGRAMAS EN PRODUCCIÓN TEXTIL Y CONFECCIONES"]
[null,"CAT0320994","OTROS PROGRAMAS EN PROTECCIÓN DE LAS PERSONAS Y DE PROPIEDAD"]
[null,"CAT3130994","OTROS PROGRAMAS EN PSICOLOGÍA"]
[null,"CAT5310994","OTROS PROGRAMAS EN QUÍMICA"]
[null,"CAT5220994","OTROS PROGRAMAS EN RECURSOS HÍDRICOS"]
[null,"CAT2210994","OTROS PROGRAMAS EN RELIGIÓN Y TEOLOGÍA"]
[null,"CAT9190994","OTROS PROGRAMAS EN SALUD"]
[null,"CAT0220994","OTROS PROGRAMAS EN SALUD Y PROTECCIÓN LABORAL"]
[null,"CAT0210994","OTROS PROGRAMAS EN SANEAMIENTO DE LA COMUNIDAD"]
[null,"CAT4150994","OTROS PROGRAMAS EN SECRETARIADO Y TRABAJO DE OFICINA"]
[null,"CAT0410994","OTROS PROGRAMAS EN SERVICIOS DE TRANSPORTE"]
[null,"CAT8210994","OTROS PROGRAMAS EN SILVICULTURA"]
[null,"CAT6120994","OTROS PROGRAMAS EN SISTEMAS Y CÓMPUTO"]
[null,"CAT3140994","OTROS PROGRAMAS EN SOCIOLOGÍA Y ESTUDIOS CULTURALES"]
[null,"CAT2110994","OTROS PROGRAMAS EN TÉCNICAS AUDIOVISUALES Y DE PRODUCCIÓN PARA MEDIOS DE COMUNICACIÓN"]
[null,"CAT9150994","OTROS PROGRAMAS EN TECNOLOGÍA DE DIAGNÓSTICO Y TRATAMIENTO MÉDICO"]
[null,"CAT6130994","OTROS PROGRAMAS EN TELECOMUNICACIONES"]
[null,"CAT9160994","OTROS PROGRAMAS EN TERAPIA Y REHABILITACIÓN"]
[null,"CAT9230994","OTROS PROGRAMAS EN TRABAJO SOCIAL"]
[null,"CAT7140994","OTROS PROGRAMAS EN VEHÍCULOS, BARCOS Y AERONAVES MOTORIZADAS"]
[null,"CAT8410994","OTROS PROGRAMAS EN VETERINARIA"]
[null,"CAT0140994","OTROS PROGRAMAS EN VIAJES, TURISMO Y ACTIVIDADES RECREATIVAS"]
[null,"CAT7216442","PANADERÍA"]
[null,"CAT7216209","PANADERÍA Y PASTELERÍA"]
[null,"CAT9999140","PANADERÍA Y PASTELERÍA ARTESANAL"]
[null,"CAT7216217","PANADERÍA Y REPOSTERIA"]
[null,"CAT9999037","PANIFICACIÓN"]
[null,"CAT9999004","PANIFICACIÓN INDUSTRIAL"]
[null,"CAT7236431","PATRONAJE"]
[null,"CAT9999008","PATRONAJE"]
[null,"CAT7230133","PATRONAJE INDUSTRIAL"]
[null,"CAT9999048","PEINADOS"]
[null,"CAT0116185","PELUQUERÍA"]
[null,"CAT0116196","PELUQUERÍA BÁSICA"]
[null,"CAT0116308","PELUQUERIA Y BARBERIA"]
[null,"CAT0116377","PELUQUERÍA Y BELLEZA"]
[null,"CAT0110043","PELUQUERÍA Y BELLEZA PERSONAL"]
[null,"CAT0116290","PELUQUERÍA Y BELLEZA PERSONAL BÁSICA"]
[null,"CAT0116331","PELUQUERÍA Y COSMETOLOGÍA"]
[null,"CAT2146376","PINTURA"]
[null,"CAT9999025","PIROGRABADO"]
[null,"CAT7136351","PLANCHADO Y PINTURA"]
[null,"CAT9999097","PLANCHADO Y PINTURA DE VEHÍCULOS"]
[null,"CAT9999029","PLATAFORMAS Y SERVICIOS DE TECNOLOGÍAS DE LA INFORMACIÓN"]
[null,"CAT9999001","PLATAFORMAS Y SERVICIOS TECNOLÓGICOS DE LA INFORMACIÓN"]
[null,"CAT9190013","PODOLOGÍA"]
[null,"CAT9130013","PRIMEROS AUXILIOS"]
[null,"CAT7216445","PROCESAMIENTO DE FRUTAS"]
[null,"CAT7216399","PROCESAMIENTO DE LÁCTEOS"]
[null,"CAT5310013","PROCESOS QUÍMICOS"]
[null,"CAT8116421","PRODUCCIÓN AGROPECUARIA"]
[null,"CAT2146395","PRODUCCIÓN DE PIEZAS EN JOYERÍA EN LA LINEA ARTESANAL EN METALES PRECIOSOS"]
[null,"CAT9999028","PRODUCCIÓN DE TEJIDOS EN TELAR"]
[null,"CAT9999027","PRODUCCIÓN EN TEJEDURÍA"]
[null,"CAT9999007","PROGRAMACIÓN DE SISTEMAS DE INFORMACIÓN"]
[null,"CAT9999006","PROGRAMACION Y OPERACION DE MAQUINAS CNC."]
[null,"CAT9999042","PROGRAMAS DE OFICINA"]
[null,"CAT4196226","PROGRAMAS EN ADMINISTRACIÓN Y COMERCIO"]
[null,"CAT2146225","PROGRAMAS EN ARTESANIA Y MANUALIDADES"]
[null,"CAT9216397","PROMOCIÓN Y PREVENCIÓN DE LA SALUD DEL NIÑO Y ADULTO MAYOR"]
[null,"CAT4146350","PROMOTOR DE VENTAS"]
[null,"CAT9999144","QUECHUA"]
[null,"CAT0120053","RECEPCIÓN HOSTELERA"]
[null,"CAT0126283","RECEPCIÓN HOTELERA"]
[null,"CAT0126412","RECEPCIÓN PARA SERVICIOS DE HOSTELERÍA"]
[null,"CAT7130133","RECTIFICACIONES MECÁNICAS"]
[null,"CAT9999052","REDACCIÓN Y TRANSMISIÓN DE DOCUMENTOS"]
[null,"CAT9999035","REDES Y COMUNICACIONES"]
[null,"CAT9190023","REFLEXOLOGÍA"]
[null,"CAT7126341","REPARACIÓN DE EQUIPOS ELECTRÓNICOS"]
[null,"CAT7120053","REPARACIÓN DE EQUIPOS ELECTRÓNICOS DE CONSUMO"]
[null,"CAT7130143","REPARACIÓN DE MOTOCICLETAS"]
[null,"CAT9999069","REPARACIÓN DE ORDENADORES"]
[null,"CAT0126378","REPOSTERÍA"]
[null,"CAT0126333","REPOSTERÍA BÁSICA"]
[null,"CAT9999099","RETABLO AYACUCHANO"]
[null,"CAT7236279","SASTRERÍA"]
[null,"CAT4156255","SECRETARIADO"]
[null,"CAT4150013","SECRETARIADO COMERCIAL"]
[null,"CAT4156466","SECRETARIADO COMPUTARIZADO"]
[null,"CAT4156426","SECRETARIADO EJECUTIVO"]
[null,"CAT4156260","SECRETARIADO EJECUTIVO COMPUTARIZADO"]
[null,"CAT2126204","SERIGRAFÍA"]
[null,"CAT0126411","SERVICIO DE MESA"]
[null,"CAT9236371","SERVICIO SOCIALES"]
[null,"CAT9196386","SERVICIOS ASISTENCIALES"]
[null,"CAT0120093","SERVICIOS BÁSICOS DE HOSTELERÍA"]
[null,"CAT0126273","SERVICIOS BÁSICOS DE RECEPCIÓN HOSTELERA"]
[null,"CAT0140013","SERVICIOS BÁSICOS DE TURISMO E IDIOMAS"]
[null,"CAT9999104","SERVICIOS DE RESTAURANT Y BAR"]
[null,"CAT0126198","SERVICIOS HOSTELEROS"]
[null,"CAT0216482","SERVICIOS PERSONALES Y DE HOGAR"]
[null,"CAT9999033","SERVICIOS SOCIALES Y ASISTENCIALES"]
[null,"CAT9236294","SERVICIOS SOCIALES Y ASISTENTES"]
[null,"CAT8116479","SISTEMAS DE RIEGO TECNIFICADO"]
[null,"CAT7136241","SOLDADURA"]
[null,"CAT7136271","SOLDADURA ELÉCTRICA"]
[null,"CAT9999031","SOLDADURA EN ESTRUCTURAS METÁLICAS"]
[null,"CAT9999128","SOLDADURA UNIVERSAL"]
[null,"CAT9999123","SOLDADURA Y CONSTRUCCIONES METÁLICAS"]
[null,"CAT6126433","SOPORTE TÉCNICO DE CENTROS DE CÓMPUTO"]
[null,"CAT9999077","SOPORTE TÉCNICO EN COMPUTADORAS"]
[null,"CAT6126300","SOPORTE TÉCNICO Y OPERACIÓN DE CENTROS DE CÓMPUTO"]
[null,"CAT9999145","SSOMA"]
[null,"CAT9999100","TALLADO EN PIEDRA HUAMANGA"]
[null,"CAT2146256","TALLADOS EN MADERA"]
[null,"CAT7236329","TAPICERÍA"]
[null,"CAT2146218","TAPICERIA Y CARPINTERIA"]
[null,"CAT9999022","TÉCNICAS CULINARIAS"]
[null,"CAT7130163","TÉCNICAS DE INGENIERÍA MECÁNICA DE MANTENIMIENTO"]
[null,"CAT0120123","TÉCNICAS DE RECEPCIÓN HOSTELERA"]
[null,"CAT9999053","TECNICO EN CONTROL DE PROCESOS DE ALMACEN"]
[null,"CAT9999024","TÉCNOLOGIAS DE LA INFORMACIÓN Y COMUNICACIONES - TIC'S"]
[null,"CAT7236280","TEJIDO A MANO"]
[null,"CAT7236467","TEJIDO A MANO Y A MÁQUINA DE TEJER"]
[null,"CAT7236193","TEJIDO A MANO Y MÁQUINA"]
[null,"CAT7236220","TEJIDO A MÁQUINA"]
[null,"CAT7236461","TEJIDO A MÁQUINA Y PALITOS"]
[null,"CAT9999136","TEJIDO A PUNTO A MANO"]
[null,"CAT7230183","TEJIDO A TELAR"]
[null,"CAT7236358","TEJIDO ARTESANAL"]
[null,"CAT7236230","TEJIDO EN TELAR"]
[null,"CAT7236315","TEJIDOS"]
[null,"CAT7236340","TEJIDOS A MÁQUINA DE TEJER"]
[null,"CAT7236197","TEJIDOS A MÁQUINA Y PALITOS"]
[null,"CAT7236391","TEJIDOS ARTESANALES Y MANUALIDADES"]
[null,"CAT7236422","TEJIDOS MANUALES"]
[null,"CAT7236436","TEJIDOS Y BORDADOS"]
[null,"CAT3210023","TELEOPERADOR DE CALL CENTER"]
[null,"CAT9999012","TENENCIAS Y COLORIMETRIA"]
[null,"CAT7236473","TEXTIL"]
[null,"CAT7236219","TEXTIL Y CONFECCIONES"]
[null,"CAT7236293","TINTORERÍA Y ESTAMPADO INDUSTRIAL"]
[null,"CAT7326455","TOPOGRAFÍA"]
[null,"CAT9999122","TOPOGRAFÍA Y GEODESIA"]
[null,"CAT9999072","TRANSPORTE TERRESTRE Y OPERACIÓN DE EQUIPOS PESADOS"]
[null,"CAT9999105","TRANSPORTE Y OPERACIÓN DE EQUIPO PESADO"]
[null,"CAT9999049","TRATAMIENTO Y BOTOX CAPILAR"]
[null,"CAT8310013","TRIPULACIÓN DE PESCA"]
[null,"CAT0146459","TURISMO"]
[null,"CAT4146205","VENTA AL DETALLE EN TIENDA"]
[null,"CAT9999093","VENTAS"]
[null,"CAT7326484","VIDRIERÍA"]
[null,"CAT7216249","VITICULTURA Y ELABORACIÓN DE VINOS, PISCO Y OTROS PRODUCTOS AFINES"]
[null,"CAT7236252","ZAPATERÍA"]